Workbook

Sheet PLOT
A1: ProperSort | B1: (All)
A3: Row Labels | B3: ME-OTC | C3: NH | D3: VT | E3: CT | F3: MA | G3: RI | H3: DE | I3: DC | J3: MD | K3: NJ | L3: NY | M3: PA | N3: OTC
A4: 2015 | B4: 1.474834843 | C4: 3.651605239 | D4: 1.633177014 | E4: 11.19046427 | F4: 10.53994631 | G4: 10.08027936 | H4: 18.67217251 | I4: 21.6262939 | J4: 6.070788623 | K4: 26.14797471 | M4: 22.59659204 | N4: 11.27184382
A5: 2016 | B5: 1.806049721 | C5: 3.591216474 | D5: 1.447288384 | E5: 11.37841125 | F5: 9.299277632 | G5: 8.855634683 | H5: 17.70989427 | I5: 19.65049827 | J5: 6.817117325 | K5: 24.84543519 | L5: 9.371242456 | M5: 18.15408649 | N5: 10.22797896
A6: 2017 | B6: 1.773961106 | C6: 4.228858805 | D6: 1.523027315 | E6: 6.757732484 | F6: 7.248629621 | G6: 8.007259593 | H6: 15.43363864 | I6: 13.27916739 | J6: 4.73088258 | K6: 23.69511026 | L6: 6.730154471 | M6: 15.64400893 | N6: 8.495580916
A7: 2018 | B7: 1.718663315 | C7: 4.024211584 | D7: 1.648405299 | E7: 9.959031398 | F7: 9.65491278 | G7: 7.901351351 | H7: 14.61444196 | I7: 15.19551384 | J7: 7.208251217 | K7: 23.49419787 | L7: 6.935053309 | M7: 15.54894411 | N7: 9.386859833
A8: 2019 | B8: 1.470880083 | C8: 4.055356426 | D8: 1.426177336 | E8: 10.0344838 | F8: 9.018667801 | G8: 8.802593345 | H8: 14.57723667 | I8: 16.08050562 | J8: 7.2936927 | K8: 18.73016596 | L8: 6.41193936 | M8: 15.00013761 | N8: 9.48420195
A9: 2020 | B9: 1.389435392 | C9: 3.82096908 | D9: 1.069355085 | E9: 8.88677216 | F9: 8.252633428 | G9: 8.167464789 | H9: 14.37058672 | I9: 11.36289337 | J9: 6.555619663 | K9: 17.55779236 | L9: 8.749657201 | M9: 13.17247037 | N9: 8.650883631
A10: 2021 | B10: 1.288274422 | C10: 4.047291368 | D10: 0.9560283341 | E10: 11.21573457 | F10: 7.97345166 | G10: 7.731007944 | H10: 10.83468107 | I10: 12.23238342 | J10: 8.431210783 | K10: 16.50688592 | L10: 6.293817464 | M10: 13.33756744 | N10: 8.453027388
A11: Grand Total | B11: 1.560372327 | C11: 3.907263884 | D11: 1.38646926 | E11: 9.822436535 | F11: 8.858306778 | G11: 8.506680756 | H11: 15.26076714 | I11: 15.60246055 | J11: 6.725724175 | K11: 21.51619862 | L11: 7.428725929 | M11: 16.20288111 | N11: 9.424351303
O46: 1st day | P46: last day
O47: January 1 | P47: December 31
O48: ="Average NOy 1-hr Concentrations " &TEXT(O47,"mmm d")&" - " &TEXT(P47,"mmm d")&" (2021 data are preliminary)" -> Average NOy 1-hr Concentrations Jan 1 - Dec 31 (2021 data are preliminary)
A51: Click on the CALCULATE MACRO to update the % change between years table below:
A52: CALCULATE MACRO
A54: Row Labels | B54: =IF(B63="","",B63) -> ME-OTC | C54: =IF(C63="","",C63) -> NH | D54: VT | E54: CT | F54: MA | G54: RI | H54: DE | I54: DC | J54: MD | K54: NJ | L54: NY | M54: PA | N54: OTC
A55: 2021/2015-100% | B55: =IF(B70="","",IF(B64="","",B70/B64-100%)) -> -0.1264958052 | C55: =IF(C70="","",IF(C64="","",C70/C64-100%)) -> 0.108359503 | D55: -0.4146205059 | E55: 0.002258199288 | F55: -0.2435016816 | G55: -0.2330561812 | H55: -0.4197418073 | I55: -0.4343744946 | J55: 0.3888163972 | K55: -0.3687126402 | M55: -0.4097531424 | N55: -0.2500758948 | Q55: =IF($B$70="","",IF(Q64="","",$B$70/Q64-100%)) ->  | R55: =IF($B$70="","",IF(R64="","",$B$70/R64-100%)) -> 
A56: 2021/2016-100% | B56: =IF(B70="","",IF(B65="","",B70/B65-100%)) -> -0.2866893931 | C56: =IF(C70="","",IF(C65="","",C70/C65-100%)) -> 0.1269973272 | D56: -0.3394348046 | E56: -0.01429695953 | F56: -0.1425730067 | G56: -0.1269956111 | H56: -0.3882131136 | I56: -0.3775026338 | J56: 0.2367706731 | K56: -0.3356169537 | L56: -0.3283902862 | M56: -0.2653132148 | N56: -0.1735388368
A57: 2021/2017-100% | B57: =IF(B70="","",IF(B66="","",B70/B66-100%)) -> -0.2737865458 | C57: =IF(C70="","",IF(C66="","",C70/C66-100%)) -> -0.04293532749 | D57: -0.3722841838 | E57: 0.6596890443 | F57: 0.09999435438 | G57: -0.0345001489 | H57: -0.2979827167 | I57: -0.0788290369 | J57: 0.7821644567 | K57: -0.3033631944 | L57: -0.06483313407 | M57: -0.1474328923 | N57: -0.005008901534
A58: 2021/2018-100% | B58: =IF(B70="","",IF(B67="","",B70/B67-100%)) -> -0.2504207131 | C58: =IF(C70="","",IF(C67="","",C70/C67-100%)) -> 0.005735231061 | D58: -0.4200283543 | E58: 0.1261872887 | F58: -0.1741560135 | G58: -0.0215587688 | H58: -0.2586318997 | I58: -0.195000344 | J58: 0.1696610633 | K58: -0.2974058527 | L58: -0.09246300152 | M58: -0.1422203751 | N58: -0.09948294333
A59: 2021/2019-100% | B59: =IF(B70="","",IF(B68="","",B70/B68-100%)) -> -0.1241472114 | C59: =IF(C70="","",IF(C68="","",C70/C68-100%)) -> -0.001988742101 | D59: -0.3296567616 | E59: 0.1177191364 | F59: -0.1158947379 | G59: -0.1217351931 | H59: -0.2567397153 | I59: -0.2393035579 | J59: 0.1559591457 | K59: -0.1187004985 | L59: -0.01842217918 | M59: -0.1108369946 | N59: -0.1087254961
A60: 2021/2020-100% | B60: =IF(B70="","",IF(B69="","",B70/B69-100%)) -> -0.07280724979 | C60: =IF(C70="","",IF(C69="","",C70/C69-100%)) -> 0.0592316458 | D60: -0.1059767263 | E60: 0.2620706783 | F60: -0.03382941577 | G60: -0.05343847272 | H60: -0.2460515854 | I60: 0.07652012728 | J60: 0.2861043222 | K60: -0.05985413291 | L60: -0.2806783946 | M60: 0.01253349334 | N60: -0.0228712177 | Q60: =IF($B$70="","",IF(Q69="","",$B$70/Q69-100%)) -> 
A63: Row Labels | B63: ME-OTC | C63: NH | D63: VT | E63: CT | F63: MA | G63: RI | H63: DE | I63: DC | J63: MD | K63: NJ | L63: NY | M63: PA | N63: OTC
A64: 2015 | B64: 1.474834843 | C64: 3.651605239 | D64: 1.633177014 | E64: 11.19046427 | F64: 10.53994631 | G64: 10.08027936 | H64: 18.67217251 | I64: 21.6262939 | J64: 6.070788623 | K64: 26.14797471 | M64: 22.59659204 | N64: 11.27184382
A65: 2016 | B65: 1.806049721 | C65: 3.591216474 | D65: 1.447288384 | E65: 11.37841125 | F65: 9.299277632 | G65: 8.855634683 | H65: 17.70989427 | I65: 19.65049827 | J65: 6.817117325 | K65: 24.84543519 | L65: 9.371242456 | M65: 18.15408649 | N65: 10.22797896
A66: 2017 | B66: 1.773961106 | C66: 4.228858805 | D66: 1.523027315 | E66: 6.757732484 | F66: 7.248629621 | G66: 8.007259593 | H66: 15.43363864 | I66: 13.27916739 | J66: 4.73088258 | K66: 23.69511026 | L66: 6.730154471 | M66: 15.64400893 | N66: 8.495580916
A67: 2018 | B67: 1.718663315 | C67: 4.024211584 | D67: 1.648405299 | E67: 9.959031398 | F67: 9.65491278 | G67: 7.901351351 | H67: 14.61444196 | I67: 15.19551384 | J67: 7.208251217 | K67: 23.49419787 | L67: 6.935053309 | M67: 15.54894411 | N67: 9.386859833
A68: 2019 | B68: 1.470880083 | C68: 4.055356426 | D68: 1.426177336 | E68: 10.0344838 | F68: 9.018667801 | G68: 8.802593345 | H68: 14.57723667 | I68: 16.08050562 | J68: 7.2936927 | K68: 18.73016596 | L68: 6.41193936 | M68: 15.00013761 | N68: 9.48420195
A69: 2020 | B69: 1.389435392 | C69: 3.82096908 | D69: 1.069355085 | E69: 8.88677216 | F69: 8.252633428 | G69: 8.167464789 | H69: 14.37058672 | I69: 11.36289337 | J69: 6.555619663 | K69: 17.55779236 | L69: 8.749657201 | M69: 13.17247037 | N69: 8.650883631
A70: 2021 | B70: 1.288274422 | C70: 4.047291368 | D70: 0.9560283341 | E70: 11.21573457 | F70: 7.97345166 | G70: 7.731007944 | H70: 10.83468107 | I70: 12.23238342 | J70: 8.431210783 | K70: 16.50688592 | L70: 6.293817464 | M70: 13.33756744 | N70: 8.453027388

Sheet HOURLY
A1: # data points 2015 | B1: 42600 | I1: =COUNT(I12:I8771) -> 8719 | J1: 8628 | K1: 8231 | L1: 4394 | M1: 8754 | N1: 8448 | O1: 6817 | P1: 8486 | Q1: 8760 | R1: 8542 | S1: 0 | T1: 8710 | U1: 8760 | V1: =COUNT(V12:V8771) -> 6667 | W1: =COUNT(W12:W8771) -> 0 | X1: 8582 | Y1: 7494 | Z1: 7703 | AA1: 8231 | AB1: 3640 | AC1: 3679 | AD1: 0 | AE1: 8115 | AF1: 7796 | AG1: 7866 | AH1: 8448 | AI1: 6817 | AJ1: 8486 | AK1: 0 | AL1: =COUNT(AL12:AL8771) -> 8045 | AM1: 8575 | AN1: 8491 | AO1: =COUNT(AO12:AO8771) -> 6247 | AP1: 8542 | AQ1: 0 | AR1: 0 | AS1: 0 | AT1: 0 | AU1: 0 | AV1: 0 | AW1: 0 | AX1: 4989 | AY1: =COUNT(AY12:AY8771) -> 7249 | AZ1: =COUNT(AZ12:AZ8771) -> 7782
A2: # data points 2016 | B2: FINAL except for Delaware | I2: =COUNT(I8772:I17555) -> 8769 | J2: 8389 | K2: 8187 | L2: 7358 | M2: 8779 | N2: 8004 | O2: 7661 | P2: 8369 | Q2: 8654 | R2: 8456 | S2: 8782 | T2: 8679 | U2: 8784 | V2: =COUNT(V8772:V17555) -> 8688 | W2: =COUNT(W8772:W17555) -> 0 | X2: 8035 | Y2: 4703 | Z2: 7329 | AA2: 8187 | AB2: 6574 | AC2: 5775 | AD2: 0 | AE2: 8228 | AF2: 8294 | AG2: 8319 | AH2: 8004 | AI2: 7661 | AJ2: 8369 | AK2: 0 | AL2: =COUNT(AL8772:AL17555) -> 2080 | AM2: 5930 | AN2: 7532 | AO2: =COUNT(AO8772:AO17555) -> 5484 | AP2: 8456 | AQ2: 0 | AR2: 0 | AS2: 7882 | AT2: 8478 | AU2: 8194 | AV2: 6038 | AW2: 0 | AX2: 8243 | AY2: =COUNT(AY8772:AY17555) -> 3893 | AZ2: =COUNT(AZ8772:AZ17555) -> 6082
A3: # data points 2017 | B3: AQS DOWNLOAD 5/28/2022 | I3: =COUNT(I17556:I26315) -> 8716 | J3: 8421 | K3: 7505 | L3: 7850 | M3: 8629 | N3: 8444 | O3: 7970 | P3: 8549 | Q3: 8630 | R3: 8344 | S3: 8760 | T3: 8738 | U3: 8760 | V3: 8144 | W3: 0 | X3: 7032 | Y3: 0 | Z3: 8421 | AA3: 7505 | AB3: 7299 | AC3: 2615 | AD3: 0 | AE3: 7826 | AF3: 8423 | AG3: 8304 | AH3: 8444 | AI3: 7970 | AJ3: 8549 | AK3: 0 | AL3: 0 | AM3: 8139 | AN3: 7591 | AO3: 1851 | AP3: 8344 | AQ3: 0 | AR3: 0 | AS3: 8069 | AT3: 8407 | AU3: 5870 | AV3: 7751 | AW3: 0 | AX3: 8166 | AY3: 0 | AZ3: 8141
A4: # data points 2018 | I4: =COUNT(I26316:I35075) -> 8753 | J4: 7959 | K4: 8152 | L4: 8249 | M4: 8255 | N4: 8436 | O4: 8503 | P4: 8235 | Q4: 8423 | R4: 8359 | S4: 8735 | T4: 8713 | U4: 8760 | V4: =COUNT(V26316:V35075) -> 8687 | W4: =COUNT(W26316:W35075) -> 0 | X4: 8248 | Y4: 0 | Z4: 7959 | AA4: 8152 | AB4: 8067 | AC4: 7347 | AD4: 0 | AE4: 0 | AF4: 6888 | AG4: 7759 | AH4: 8436 | AI4: 8503 | AJ4: 8235 | AK4: 6400 | AL4: =COUNT(AL26316:AL35075) -> 0 | AM4: 7397 | AN4: 0 | AO4: =COUNT(AO26316:AO35075) -> 0 | AP4: 8359 | AQ4: 0 | AR4: 3540 | AS4: 8130 | AT4: 7533 | AU4: 6954 | AV4: 7487 | AW4: 3334 | AX4: 8004 | AY4: =COUNT(AY26316:AY35075) -> 0 | AZ4: =COUNT(AZ26316:AZ35075) -> 7768
A5: # data points 2019 | I5: =COUNT(I35076:I43835) -> 8681 | J5: 7968 | K5: 8154 | L5: 8272 | M5: 8227 | N5: 6401 | O5: 8193 | P5: 8509 | Q5: 8617 | R5: 8677 | S5: 8153 | T5: 8720 | U5: 8760 | V5: =COUNT(V35076:V43835) -> 7617 | W5: =COUNT(W35076:W43835) -> 0 | X5: 8401 | Y5: 0 | Z5: 7968 | AA5: 8154 | AB5: 8169 | AC5: 7800 | AD5: 0 | AE5: 0 | AF5: 7764 | AG5: 7421 | AH5: 6401 | AI5: 8193 | AJ5: 8509 | AK5: 7512 | AL5: =COUNT(AL35076:AL43835) -> 0 | AM5: 7595 | AN5: 0 | AO5: =COUNT(AO35076:AO43835) -> 0 | AP5: 8509 | AQ5: 6259 | AR5: 5678 | AS5: 6736 | AT5: 5641 | AU5: 5509 | AV5: 5682 | AW5: 3400 | AX5: 8171 | AY5: =COUNT(AY35076:AY43835) -> 0 | AZ5: =COUNT(AZ35076:AZ43835) -> 7902
A6: # data points 2020 | I6: =COUNT(I43836:I52619) -> 8776 | J6: 7471 | K6: 7846 | L6: 8089 | M6: 8494 | N6: 7100 | O6: 7755 | P6: 8670 | Q6: 8666 | R6: 8688 | S6: 8784 | T6: 8776 | U6: 8784 | V6: =COUNT(V43836:V52619) -> 8556 | W6: =COUNT(W43836:W52619) -> 0 | X6: 8372 | Y6: 0 | Z6: 7471 | AA6: 7846 | AB6: 7668 | AC6: 5361 | AD6: 7490 | AE6: 0 | AF6: 6827 | AG6: 7368 | AH6: 7100 | AI6: 7755 | AJ6: 8670 | AK6: 7663 | AL6: =COUNT(AL43836:AL52619) -> 0 | AM6: 8491 | AN6: 0 | AO6: =COUNT(AO43836:AO52619) -> 0 | AP6: 8499 | AQ6: 6397 | AR6: 8538 | AS6: 8291 | AT6: 8598 | AU6: 8329 | AV6: 7008 | AW6: 0 | AX6: 8301 | AY6: =COUNT(AY43836:AY52619) -> 0 | AZ6: =COUNT(AZ43836:AZ52619) -> 8110
A7: # data points 2021 | I7: =COUNT(I52620:I61379) -> 8742 | J7: 4877 | K7: 8188 | L7: 8100 | M7: 8423 | N7: 8056 | O7: 5738 | P7: 8633 | Q7: 8606 | R7: 8757 | S7: 8759 | T7: 8711 | U7: 8760 | V7: 8426 | W7: 0 | X7: 8237 | Y7: 0 | Z7: 4877 | AA7: 8188 | AB7: 5644 | AC7: 6161 | AD7: 7999 | AE7: 0 | AF7: 7468 | AG7: 8264 | AH7: 8056 | AI7: 5738 | AJ7: 8633 | AK7: 8083 | AL7: 0 | AM7: 6962 | AN7: 0 | AO7: 0 | AP7: 8497 | AQ7: 8441 | AR7: 8425 | AS7: 8170 | AT7: 8311 | AU7: 0 | AV7: 6882 | AW7: 0 | AX7: 7893 | AY7: 0 | AZ7: 8074
V8: 1-HR NOy | W8: 1-HR NOy | X8: 1-HR NOy | Y8: 1-HR NOy | Z8: 1-HR NOy | AA8: 1-HR NOy | AB8: 1-HR NOy | AC8: 1-HR NOy | AD8: 1-HR NOy | AE8: 1-HR NOy | AF8: 1-HR NOy | AG8: 1-HR NOy | AH8: 1-HR NOy | AI8: 1-HR NOy | AJ8: 1-HR NOy | AK8: 1-HR NOy | AL8: 1-HR NOy | AM8: 1-HR NOy | AN8: 1-HR NOy | AO8: 1-HR NOy | AP8: 1-HR NOy | AQ8: 1-HR NOy | AR8: 1-HR NOy | AS8: 1-HR NOy | AT8: 1-HR NOy | AU8: 1-HR NOy | AV8: 1-HR NOy | AW8: 1-HR NOy | AX8: 1-HR NOy | AY8: 1-HR NOy | AZ8: 1-HR NOy
V9: ME | W9: ME | X9: ME | Y9: NH | Z9: NH | AA9: VT | AB9: CT | AC9: CT | AD9: MA | AE9: MA | AF9: MA | AG9: MA | AH9: RI | AI9: DE | AJ9: DC | AK9: MD | AL9: MD | AM9: MD | AN9: MD | AO9: MD | AP9: NJ | AQ9: NJ | AR9: NY | AS9: NY | AT9: NY | AU9: NY | AV9: NY | AW9: NY | AX9: PA3 | AY9: PA | AZ9: PA
I10: ME-OTC | J10: NH | K10: VT | L10: CT | M10: MA | N10: RI | O10: DE | P10: DC | Q10: MD | R10: NJ | S10: NY | T10: PA | U10: OTC | V10: Cape Elizabeth | W10: Summit of Cadillac Mt | X10: McFarland Hill | Y10: Miller State Park | Z10: Londonderry - Moose Hill | AA10: Underhill | AB10: Cornwall | AC10: New Haven - Criscuolo Park | AD10: LYNN | AE10: Newbury | AF10: WARE | AG10: Boston - Roxbury | AH10: E Providence | AI10: MLK | AJ10: McMillan Reservoir | AK10: Essex | AL10: Horn Point | AM10: Piney Run | AN10: HU-Beltsville | AO10: Beltsville | AP10: Newark Firehouse | AQ10: Rutgers University | AR10: NYBG-Bronx | AS10: Huntington Wildlife | AT10: Rochester | AU10: Queens | AV10: Pinnacle State Park | AW10: Flax Pond | AX10: Lawrenceville | AY10: LAB | AZ10: NEW
A11: DATE | B11: Month Day | C11: ProperDate | D11: ProperSort | E11: MONTH | F11: DAY | G11: YEAR | H11: Hour | I11: ME NOy | J11: NH NOy | K11: VT NOy | L11: CT NOy | M11: MA NOy | N11: RI NOy | O11: DE NOy | P11: DC NOy | Q11: MD NOy | R11: NJ NOy | S11: NY NOy | T11: PA NOy | U11: OTC NOy | V11: 230052003 | W11: 230090102 | X11: 230090103 | Y11: 330115001 | Z11: 330150018 | AA11: 500070007 | AB11: 90050005 | AC11: 90090027 | AD11: 25-009-2006 | AE11: 250094005 | AF11: 250154002 | AG11: 250250042 | AH11: 44-007-1010 | AI11: 100032004 | AJ11: 110010043 | AK11: 240053001 | AL11: 240190004 | AM11: 240230002 | AN11: 240330030 | AO11: 240339991 | AP11: 340130003 | AQ11: 340230011 | AR11: 360050133 | AS11: 360319991 | AT11: 360551007 | AU11: 360810124 | AV11: 361010003 | AW11: 361030044 | AX11: 420030008 | AY11: 421010004 | AZ11: 421010048
A12: 2015-01-01 | B12: Jan 01 | C12: =DATE(G12,E12,F12) -> 2015-01-01 | D12: =TEXT(E12,"00")&"-"&TEXT(C12,"MMM")&" "&TEXT(F12,"00") -> 01-Jan 01 | E12: 1 | F12: 1 | G12: 2015 | H12: 00:00:00 | I12: =IF(COUNT(V12:X12)=0,"",AVERAGE(V12:X12)) -> 0.43 | J12: =IF(COUNT(Y12:Z12)=0,"",AVERAGE(Y12:Z12)) -> 6.5 | K12: =IF(COUNT(AA12)=0,"",AA12) -> 1.46 | L12: =IF(COUNT(AB12:AC12)=0,"",AVERAGE(AB12:AC12)) ->  | M12: =IF(COUNT(AD12:AG12)=0,"",AVERAGE(AD12:AG12)) -> 19.66333333 | N12: =IF(COUNT(AH12)=0,"",AH12) -> 19.7 | O12: =IF(COUNT(AI12)=0,"",AI12) -> 34.4 | P12: =IF(COUNT(AJ12)=0,"",AJ12) -> 62.21 | Q12: =IF(COUNT(AK12:AO12)=0,"",AVERAGE(AK12:AO12)) -> 29.275 | R12: =IF(COUNT(AP12:AQ12)=0,"",AVERAGE(AP12:AQ12)) -> 47 | S12: =IF(COUNT(AR12:AW12)=0,"",AVERAGE(AR12:AW12)) ->  | T12: =IF(COUNT(AX12:AZ12)=0,"",AVERAGE(AX12:AZ12)) -> 24.2 | U12: =IF(COUNT(V12:AZ12)=0,"",AVERAGE(V12:AZ12)) -> 23.71611111 | X12: 0.43 | Y12: 1.6 | Z12: 11.4 | AA12: 1.46 | AE12: 1.65 | AF12: 8.95 | AG12: 48.39 | AH12: 19.7 | AI12: 34.4 | AJ12: 62.21 | AL12: 3.9 | AM12: 4.5 | AN12: 79.2 | AO12: 29.5 | AP12: 47 | AX12: 11.9 | AY12: 35.8 | AZ12: 24.9
A13: 2015-01-01 | B13: Jan 01 | C13: =DATE(G13,E13,F13) -> 2015-01-01 | D13: =TEXT(E13,"00")&"-"&TEXT(C13,"MMM")&" "&TEXT(F13,"00") -> 01-Jan 01 | E13: 1 | F13: 1 | G13: 2015 | H13: 01:00:00 | I13: 0.54 | J13: =IF(COUNT(Y13:Z13)=0,"",AVERAGE(Y13:Z13)) -> 5.85 | K13: =IF(COUNT(AA13)=0,"",AA13) ->  | L13: =IF(COUNT(AB13:AC13)=0,"",AVERAGE(AB13:AC13)) ->  | M13: =IF(COUNT(AD13:AG13)=0,"",AVERAGE(AD13:AG13)) -> 15.62 | N13: =IF(COUNT(AH13)=0,"",AH13) -> 19 | O13: =IF(COUNT(AI13)=0,"",AI13) -> 39.4 | P13: =IF(COUNT(AJ13)=0,"",AJ13) -> 60.55 | Q13: 29.875 | R13: 40 | T13: 34.8 | U13: 25.446875 | X13: 0.54 | Y13: 1.5 | Z13: 10.2 | AE13: 1.01 | AF13: 8.61 | AG13: 37.24 | AH13: 19 | AI13: 39.4 | AJ13: 60.55 | AL13: 3.3 | AM13: 4.6 | AN13: 80.2 | AO13: 31.4 | AP13: 40 | AY13: 44.5 | AZ13: 25.1
A14: 2015-01-01 | B14: Jan 01 | C14: 2015-01-01 | D14: 01-Jan 01 | E14: 1 | F14: 1 | G14: 2015 | H14: 02:00:00 | I14: 0.78 | J14: 5.9 | K14: 1.79 | M14: 12.57333333 | N14: 15.7 | O14: 32.5 | P14: 40.82 | Q14: 32.675 | R14: 44 | T14: 23.3 | U14: 21.42833333 | X14: 0.78 | Y14: 1.8 | Z14: 10 | AA14: 1.79 | AE14: 1.5 | AF14: 10.07 | AG14: 26.15 | AH14: 15.7 | AI14: 32.5 | AJ14: 40.82 | AL14: 3.6 | AM14: 4.7 | AN14: 87.1 | AO14: 35.3 | AP14: 44 | AX14: 11.4 | AY14: 36.8 | AZ14: 21.7
A15: 2015-01-01 | B15: Jan 01 | C15: 2015-01-01 | D15: 01-Jan 01 | E15: 1 | F15: 1 | G15: 2015 | H15: 03:00:00 | I15: 0.79 | J15: 6.45 | K15: 2.08 | M15: 9.156666667 | N15: 13.8 | O15: 12.1 | P15: 33.05 | Q15: 37.875 | R15: 49 | T15: 19.6 | U15: 20.08277778 | X15: 0.79 | Y15: 2.2 | Z15: 10.7 | AA15: 2.08 | AE15: 1.49 | AF15: 10.32 | AG15: 15.66 | AH15: 13.8 | AI15: 12.1 | AJ15: 33.05 | AL15: 5.7 | AM15: 4.6 | AN15: 97.7 | AO15: 43.5 | AP15: 49 | AX15: 8.7 | AY15: 32.8 | AZ15: 17.3
A16: 2015-01-01 | B16: Jan 01 | C16: 2015-01-01 | D16: 01-Jan 01 | E16: 1 | F16: 1 | G16: 2015 | H16: 04:00:00 | I16: 0.77 | J16: 6.5 | M16: 8.315 | N16: 10.9 | O16: 10.2 | P16: 23.62 | Q16: 39 | R16: 33 | T16: 17.36666667 | U16: 19.76375 | X16: 0.77 | Y16: 2.6 | Z16: 10.4 | AE16: 1.8 | AG16: 14.83 | AH16: 10.9 | AI16: 10.2 | AJ16: 23.62 | AL16: 4.2 | AM16: 4.3 | AN16: 104.3 | AO16: 43.2 | AP16: 33 | AX16: 8.9 | AY16: 27.5 | AZ16: 15.7
A17: 2015-01-01 | B17: Jan 01 | C17: 2015-01-01 | D17: 01-Jan 01 | E17: 1 | F17: 1 | G17: 2015 | H17: 05:00:00 | I17: 0.77 | J17: 5.9 | M17: 10.2 | N17: 8.3 | O17: 10.6 | P17: 25.82 | Q17: 33.025 | R17: 53 | T17: 17.33333333 | U17: 19.674375 | X17: 0.77 | Y17: 2.8 | Z17: 9 | AE17: 1.85 | AG17: 18.55 | AH17: 8.3 | AI17: 10.6 | AJ17: 25.82 | AL17: 2.3 | AM17: 4.1 | AN17: 85.1 | AO17: 40.6 | AP17: 53 | AX17: 9.6 | AY17: 26.5 | AZ17: 15.9
A18: 2015-01-01 | B18: Jan 01 | C18: 2015-01-01 | D18: 01-Jan 01 | E18: 1 | F18: 1 | G18: 2015 | H18: 06:00:00 | I18: 1.06 | J18: 5.55 | M18: 9.45 | N18: 8.1 | O18: 11.6 | P18: 40.07 | Q18: 34.025 | R18: 57 | T18: 18.03333333 | U18: 20.44 | X18: 1.06 | Y18: 2.9 | Z18: 8.2 | AE18: 1.31 | AF18: 4.48 | AG18: 22.56 | AH18: 8.1 | AI18: 11.6 | AJ18: 40.07 | AL18: 2.5 | AM18: 4 | AN18: 95.9 | AO18: 33.7 | AP18: 57 | AX18: 9.5 | AY18: 27.6 | AZ18: 17
A19: 2015-01-01 | B19: Jan 01 | C19: 2015-01-01 | D19: 01-Jan 01 | E19: 1 | F19: 1 | G19: 2015 | H19: 07:00:00 | I19: 1.43 | J19: 5 | K19: 3.56 | M19: 10.16333333 | N19: 9.2 | O19: 14.7 | P19: 36.47 | Q19: 30.075 | R19: 54 | T19: 18.96666667 | U19: 18.725 | X19: 1.43 | Y19: 2.9 | Z19: 7.1 | AA19: 3.56 | AE19: 1.91 | AF19: 6.22 | AG19: 22.36 | AH19: 9.2 | AI19: 14.7 | AJ19: 36.47 | AL19: 2 | AM19: 3.9 | AN19: 85.3 | AO19: 29.1 | AP19: 54 | AX19: 11 | AY19: 29.5 | AZ19: 16.4
A20: 2015-01-01 | B20: Jan 01 | C20: 2015-01-01 | D20: 01-Jan 01 | E20: 1 | F20: 1 | G20: 2015 | H20: 08:00:00 | I20: 1.56 | J20: 4.25 | K20: 3.38 | M20: 8.69 | N20: 8.3 | O20: 13.5 | P20: 21.81 | Q20: 27.875 | R20: 33 | T20: 18.4 | U20: 15.71222222 | X20: 1.56 | Y20: 2.9 | Z20: 5.6 | AA20: 3.38 | AE20: 2.16 | AF20: 6.03 | AG20: 17.88 | AH20: 8.3 | AI20: 13.5 | AJ20: 21.81 | AL20: 2.4 | AM20: 3.8 | AN20: 78.6 | AO20: 26.7 | AP20: 33 | AX20: 11.7 | AY20: 27.3 | AZ20: 16.2
A21: 2015-01-01 | B21: Jan 01 | C21: 2015-01-01 | D21: 01-Jan 01 | E21: 1 | F21: 1 | G21: 2015 | H21: 09:00:00 | I21: 1.48 | J21: 4.05 | K21: 3.33 | M21: 6.483333333 | N21: 6.6 | O21: 9.3 | P21: 15.79 | Q21: 21.625 | R21: 21 | T21: 13.36666667 | U21: 11.75833333 | X21: 1.48 | Y21: 2.9 | Z21: 5.2 | AA21: 3.33 | AE21: 2.07 | AF21: 4.63 | AG21: 12.75 | AH21: 6.6 | AI21: 9.3 | AJ21: 15.79 | AL21: 2.2 | AM21: 3.7 | AN21: 58.3 | AO21: 22.3 | AP21: 21 | AX21: 8.8 | AY21: 18.2 | AZ21: 13.1
A22: 2015-01-01 | B22: Jan 01 | C22: 2015-01-01 | D22: 01-Jan 01 | E22: 1 | F22: 1 | G22: 2015 | H22: 10:00:00 | I22: 1.56 | J22: 3.75 | K22: 3.17 | M22: 5.343333333 | N22: 7.3 | O22: 7.4 | P22: 14.3 | Q22: 9.175 | R22: 11 | T22: 10.26666667 | U22: 7.542222222 | X22: 1.56 | Y22: 2.9 | Z22: 4.6 | AA22: 3.17 | AE22: 1.79 | AF22: 3.87 | AG22: 10.37 | AH22: 7.3 | AI22: 7.4 | AJ22: 14.3 | AL22: 2.1 | AM22: 3.6 | AN22: 19.5 | AO22: 11.5 | AP22: 11 | AX22: 9 | AY22: 12.6 | AZ22: 9.2
A23: 2015-01-01 | B23: Jan 01 | C23: 2015-01-01 | D23: 01-Jan 01 | E23: 1 | F23: 1 | G23: 2015 | H23: 11:00:00 | I23: 1.6 | J23: 3.2 | K23: 3.01 | M23: 5.32 | N23: 8.3 | O23: 5.8 | P23: 12.4 | Q23: 5.525 | R23: 10 | T23: 10 | U23: 6.420555556 | X23: 1.6 | Y23: 2.8 | Z23: 3.6 | AA23: 3.01 | AE23: 1.14 | AF23: 3.52 | AG23: 11.3 | AH23: 8.3 | AI23: 5.8 | AJ23: 12.4 | AL23: 1.9 | AM23: 3.5 | AN23: 9 | AO23: 7.7 | AP23: 10 | AX23: 8.7 | AY23: 12.3 | AZ23: 9
A24: 2015-01-01 | B24: Jan 01 | C24: 2015-01-01 | D24: 01-Jan 01 | E24: 1 | F24: 1 | G24: 2015 | H24: 12:00:00 | I24: 1.58 | J24: 2.9 | K24: 2.93 | M24: 4.136666667 | N24: 6.1 | O24: 4.8 | P24: 7.56 | Q24: 4.425 | R24: 11 | T24: 10.06666667 | U24: 5.56 | X24: 1.58 | Y24: 2.7 | Z24: 3.1 | AA24: 2.93 | AE24: 1.07 | AF24: 3.16 | AG24: 8.18 | AH24: 6.1 | AI24: 4.8 | AJ24: 7.56 | AL24: 1.7 | AM24: 3.3 | AN24: 6.6 | AO24: 6.1 | AP24: 11 | AX24: 7.5 | AY24: 13.8 | AZ24: 8.9
A25: 2015-01-01 | B25: Jan 01 | C25: 2015-01-01 | D25: 01-Jan 01 | E25: 1 | F25: 1 | G25: 2015 | H25: 13:00:00 | I25: 1.59 | J25: 3.05 | K25: 2.88 | M25: 4.706666667 | N25: 6.5 | O25: 4.1 | P25: 4.87 | Q25: 3.075 | R25: 9 | T25: 10.8 | U25: 5.214444444 | X25: 1.59 | Y25: 2.6 | Z25: 3.5 | AA25: 2.88 | AE25: 0.96 | AF25: 3.25 | AG25: 9.91 | AH25: 6.5 | AI25: 4.1 | AJ25: 4.87 | AL25: 1.7 | AM25: 3.1 | AN25: 3.1 | AO25: 4.4 | AP25: 9 | AX25: 7.1 | AY25: 14.9 | AZ25: 10.4
A26: 2015-01-01 | B26: Jan 01 | C26: 2015-01-01 | D26: 01-Jan 01 | E26: 1 | F26: 1 | G26: 2015 | H26: 14:00:00 | I26: 1.55 | J26: 3.2 | K26: 2.79 | M26: 4.853333333 | N26: 9.9 | O26: 4.7 | P26: 5.31 | Q26: 2.35 | R26: 10 | T26: 10.76666667 | U26: 5.383888889 | X26: 1.55 | Y26: 2.5 | Z26: 3.9 | AA26: 2.79 | AE26: 1.1 | AF26: 3.2 | AG26: 10.26 | AH26: 9.9 | AI26: 4.7 | AJ26: 5.31 | AL26: 1.5 | AM26: 2.9 | AN26: 1.5 | AO26: 3.5 | AP26: 10 | AX26: 6.8 | AY26: 15.2 | AZ26: 10.3
A27: 2015-01-01 | B27: Jan 01 | C27: 2015-01-01 | D27: 01-Jan 01 | E27: 1 | F27: 1 | G27: 2015 | H27: 15:00:00 | I27: 1.42 | J27: 3.3 | K27: 2.73 | M27: 6.036666667 | N27: 10.9 | O27: 4.2 | P27: 6.35 | Q27: 2.675 | R27: 11 | T27: 11.76666667 | U27: 5.961666667 | X27: 1.42 | Y27: 2.5 | Z27: 4.1 | AA27: 2.73 | AE27: 0.89 | AF27: 3.4 | AG27: 13.82 | AH27: 10.9 | AI27: 4.2 | AJ27: 6.35 | AL27: 1.4 | AM27: 2.7 | AN27: 2.7 | AO27: 3.9 | AP27: 11 | AX27: 7.8 | AY27: 17.3 | AZ27: 10.2
A28: 2015-01-01 | B28: Jan 01 | C28: 2015-01-01 | D28: 01-Jan 01 | E28: 1 | F28: 1 | G28: 2015 | H28: 16:00:00 | I28: 1.6 | J28: 3.55 | K28: 2.73 | M28: 7.516666667 | N28: 14.9 | O28: 5.3 | P28: 8.72 | Q28: 3.125 | R28: 15 | T28: 14.93333333 | U28: 7.511111111 | X28: 1.6 | Y28: 2.7 | Z28: 4.4 | AA28: 2.73 | AE28: 0.84 | AF28: 4.42 | AG28: 17.29 | AH28: 14.9 | AI28: 5.3 | AJ28: 8.72 | AL28: 1.3 | AM28: 2.6 | AN28: 3.5 | AO28: 5.1 | AP28: 15 | AX28: 7 | AY28: 22.9 | AZ28: 14.9
A29: 2015-01-01 | B29: Jan 01 | C29: 2015-01-01 | D29: 01-Jan 01 | E29: 1 | F29: 1 | G29: 2015 | H29: 17:00:00 | I29: 1.91 | J29: 3.7 | K29: 2.72 | M29: 8.99 | N29: 17.4 | O29: 7.1 | P29: 17.13 | Q29: 4.275 | R29: 18 | T29: 16.03333333 | U29: 9.101666667 | X29: 1.91 | Y29: 2.8 | Z29: 4.6 | AA29: 2.72 | AE29: 0.99 | AF29: 5.61 | AG29: 20.37 | AH29: 17.4 | AI29: 7.1 | AJ29: 17.13 | AL29: 1.4 | AM29: 2.4 | AN29: 6.8 | AO29: 6.5 | AP29: 18 | AX29: 8 | AY29: 23.5 | AZ29: 16.6
A30: 2015-01-01 | B30: Jan 01 | C30: 2015-01-01 | D30: 01-Jan 01 | E30: 1 | F30: 1 | G30: 2015 | H30: 18:00:00 | I30: 1.77 | J30: 4.55 | K30: 2.73 | M30: 13.94 | N30: 14.8 | O30: 7.3 | P30: 22 | Q30: 5.55 | R30: 18 | T30: 19 | U30: 10.75176471 | X30: 1.77 | Y30: 3 | Z30: 6.1 | AA30: 2.73 | AF30: 6.53 | AG30: 21.35 | AH30: 14.8 | AI30: 7.3 | AJ30: 22 | AL30: 1.5 | AM30: 2.2 | AN30: 10.9 | AO30: 7.6 | AP30: 18 | AX30: 11.6 | AY30: 28.2 | AZ30: 17.2
A31: 2015-01-01 | B31: Jan 01 | C31: 2015-01-01 | D31: 01-Jan 01 | E31: 1 | F31: 1 | G31: 2015 | H31: 19:00:00 | I31: 2.08 | J31: 5.4 | K31: 2.69 | M31: 10.40333333 | N31: 19.7 | O31: 11 | P31: 25.26 | Q31: 5.9 | R31: 26 | T31: 19.03333333 | U31: 11.63555556 | X31: 2.08 | Y31: 3.2 | Z31: 7.6 | AA31: 2.69 | AE31: 1.19 | AF31: 7.83 | AG31: 22.19 | AH31: 19.7 | AI31: 11 | AJ31: 25.26 | AL31: 1.9 | AM31: 2.1 | AN31: 12 | AO31: 7.6 | AP31: 26 | AX31: 14.8 | AY31: 26.4 | AZ31: 15.9
A32: 2015-01-01 | B32: Jan 01 | C32: 2015-01-01 | D32: 01-Jan 01 | E32: 1 | F32: 1 | G32: 2015 | H32: 20:00:00 | I32: 1.72 | J32: 5.9 | K32: 2.68 | M32: 11.52666667 | N32: 23.2 | O32: 12.9 | P32: 16.63 | Q32: 5.55 | R32: 27 | T32: 19.53333333 | U32: 11.73944444 | X32: 1.72 | Y32: 3.6 | Z32: 8.2 | AA32: 2.68 | AE32: 1.1 | AF32: 7.37 | AG32: 26.11 | AH32: 23.2 | AI32: 12.9 | AJ32: 16.63 | AL32: 1.7 | AM32: 2 | AN32: 11.4 | AO32: 7.1 | AP32: 27 | AX32: 15.7 | AY32: 28.6 | AZ32: 14.3
A33: 2015-01-01 | B33: Jan 01 | C33: 2015-01-01 | D33: 01-Jan 01 | E33: 1 | F33: 1 | G33: 2015 | H33: 21:00:00 | I33: 1.82 | J33: 6.25 | K33: 2.73 | M33: 10.14333333 | N33: 20.8 | O33: 22.8 | P33: 17.57 | Q33: 6.35 | R33: 30 | T33: 20.13333333 | U33: 12.46944444 | X33: 1.82 | Y33: 3.9 | Z33: 8.6 | AA33: 2.73 | AE33: 1.3 | AF33: 6.47 | AG33: 22.66 | AH33: 20.8 | AI33: 22.8 | AJ33: 17.57 | AL33: 1.5 | AM33: 1.9 | AN33: 14 | AO33: 8 | AP33: 30 | AX33: 11.2 | AY33: 25.4 | AZ33: 23.8
A34: 2015-01-01 | B34: Jan 01 | C34: 2015-01-01 | D34: 01-Jan 01 | E34: 1 | F34: 1 | G34: 2015 | H34: 22:00:00 | I34: 2.04 | J34: 6.7 | K34: 2.84 | M34: 10.85666667 | N34: 14.5 | O34: 38.8 | P34: 16.26 | Q34: 7 | R34: 31 | T34: 25.83333333 | U34: 14.27277778 | X34: 2.04 | Y34: 4.3 | Z34: 9.1 | AA34: 2.84 | AE34: 1.06 | AF34: 7.01 | AG34: 24.5 | AH34: 14.5 | AI34: 38.8 | AJ34: 16.26 | AL34: 2.1 | AM34: 2 | AN34: 15 | AO34: 8.9 | AP34: 31 | AX34: 9.8 | AY34: 40.4 | AZ34: 27.3
A35: 2015-01-01 | B35: Jan 01 | C35: 2015-01-01 | D35: 01-Jan 01 | E35: 1 | F35: 1 | G35: 2015 | H35: 23:00:00 | I35: 2.02 | J35: 6.95 | K35: 2.92 | M35: 10.49333333 | N35: 16.6 | O35: 38.2 | P35: 20.8 | Q35: 10.475 | R35: 29 | T35: 27.13333333 | U35: 15.45666667 | X35: 2.02 | Y35: 4.5 | Z35: 9.4 | AA35: 2.92 | AE35: 1.2 | AF35: 7.95 | AG35: 22.33 | AH35: 16.6 | AI35: 38.2 | AJ35: 20.8 | AL35: 2.4 | AM35: 2.1 | AN35: 27.1 | AO35: 10.3 | AP35: 29 | AX35: 12.1 | AY35: 42.9 | AZ35: 26.4
A36: 2015-01-02 | B36: Jan 02 | C36: 2015-01-02 | D36: 01-Jan 02 | E36: 1 | F36: 2 | G36: 2015 | H36: 00:00:00 | I36: 1.99 | J36: 7.05 | K36: 2.92 | M36: 9.716666667 | N36: 16.1 | O36: 49.1 | P36: 23.84 | Q36: 6.8 | R36: 28 | T36: 31.16666667 | U36: 15.88333333 | X36: 1.99 | Y36: 4.7 | Z36: 9.4 | AA36: 2.92 | AE36: 1.49 | AF36: 7.88 | AG36: 19.78 | AH36: 16.1 | AI36: 49.1 | AJ36: 23.84 | AL36: 1.9 | AM36: 2.4 | AN36: 12.3 | AO36: 10.6 | AP36: 28 | AX36: 12.4 | AY36: 49.4 | AZ36: 31.7
A37: 2015-01-02 | B37: Jan 02 | C37: 2015-01-02 | D37: 01-Jan 02 | E37: 1 | F37: 2 | G37: 2015 | H37: 01:00:00 | I37: 2.34 | J37: 7.05 | M37: 9.576666667 | N37: 11.9 | O37: 60.7 | P37: 30.2 | Q37: 7.325 | R37: 25 | T37: 48.1 | U37: 18.654375 | X37: 2.34 | Y37: 4.7 | Z37: 9.4 | AE37: 1.38 | AF37: 7.88 | AG37: 19.47 | AH37: 11.9 | AI37: 60.7 | AJ37: 30.2 | AL37: 2.1 | AM37: 2.7 | AN37: 12.1 | AO37: 12.4 | AP37: 25 | AY37: 56.7 | AZ37: 39.5
A38: 2015-01-02 | B38: Jan 02 | C38: 2015-01-02 | D38: 01-Jan 02 | E38: 1 | F38: 2 | G38: 2015 | H38: 02:00:00 | I38: 2.59 | J38: 6.7 | K38: 2.19 | M38: 10.09333333 | N38: 12.8 | O38: 43.6 | P38: 30.15 | Q38: 7.1 | R38: 25 | T38: 36.23333333 | U38: 16.50611111 | X38: 2.59 | Y38: 4.6 | Z38: 8.8 | AA38: 2.19 | AE38: 1.45 | AF38: 7.66 | AG38: 21.17 | AH38: 12.8 | AI38: 43.6 | AJ38: 30.15 | AL38: 3.4 | AM38: 3.1 | AN38: 10.3 | AO38: 11.6 | AP38: 25 | AX38: 9.2 | AY38: 55.8 | AZ38: 43.7
A39: 2015-01-02 | B39: Jan 02 | C39: 2015-01-02 | D39: 01-Jan 02 | E39: 1 | F39: 2 | G39: 2015 | H39: 03:00:00 | I39: 2.89 | J39: 6.2 | K39: 2.54 | M39: 11.385 | N39: 15.7 | O39: 25.5 | P39: 20.93 | Q39: 6.1 | R39: 26 | T39: 33.66666667 | U39: 16.12866667 | X39: 2.89 | Y39: 4.5 | Z39: 7.9 | AA39: 2.54 | AE39: 1.49 | AG39: 21.28 | AH39: 15.7 | AI39: 25.5 | AJ39: 20.93 | AM39: 3.3 | AN39: 8.9 | AP39: 26 | AX39: 9.8 | AY39: 50.7 | AZ39: 40.5
A40: 2015-01-02 | B40: Jan 02 | C40: 2015-01-02 | D40: 01-Jan 02 | E40: 1 | F40: 2 | G40: 2015 | H40: 04:00:00 | I40: 2.89 | J40: 6.1 | K40: 2.64 | M40: 10.215 | N40: 13.5 | O40: 33.3 | P40: 16.93 | Q40: 5.166666667 | R40: 28 | T40: 32.53333333 | U40: 15.186875 | X40: 2.89 | Y40: 4.3 | Z40: 7.9 | AA40: 2.64 | AE40: 1.18 | AG40: 19.25 | AH40: 13.5 | AI40: 33.3 | AJ40: 16.93 | AL40: 3.1 | AM40: 4.1 | AN40: 8.3 | AP40: 28 | AX40: 15.7 | AY40: 55.8 | AZ40: 26.1
A41: 2015-01-02 | B41: Jan 02 | C41: 2015-01-02 | D41: 01-Jan 02 | E41: 1 | F41: 2 | G41: 2015 | H41: 05:00:00 | I41: 3.14 | J41: 5.85 | K41: 2.73 | M41: 12.085 | N41: 15.1 | O41: 32 | P41: 14.34 | Q41: 5.966666667 | R41: 33 | T41: 35.3 | U41: 16.24875 | X41: 3.14 | Y41: 4.1 | Z41: 7.6 | AA41: 2.73 | AE41: 0.95 | AG41: 23.22 | AH41: 15.1 | AI41: 32 | AJ41: 14.34 | AL41: 4.3 | AM41: 4.1 | AN41: 9.5 | AP41: 33 | AX41: 16.1 | AY41: 59.3 | AZ41: 30.5
A42: 2015-01-02 | B42: Jan 02 | C42: 2015-01-02 | D42: 01-Jan 02 | E42: 1 | F42: 2 | G42: 2015 | H42: 06:00:00 | I42: 3.03 | K42: 2.6 | M42: 11.9 | N42: 16.5 | O42: 52.9 | P42: 28.92 | Q42: 6.333333333 | R42: 43 | T42: 36.76666667 | U42: 20.79666667 | X42: 3.03 | AA42: 2.6 | AE42: 0.89 | AF42: 7.97 | AG42: 26.84 | AH42: 16.5 | AI42: 52.9 | AJ42: 28.92 | AL42: 3.6 | AM42: 4.3 | AN42: 11.1 | AP42: 43 | AX42: 15.6 | AY42: 52.2 | AZ42: 42.5
A43: 2015-01-02 | B43: Jan 02 | C43: 2015-01-02 | D43: 01-Jan 02 | E43: 1 | F43: 2 | G43: 2015 | H43: 07:00:00 | I43: 4.32 | J43: 5.75 | K43: 2.31 | M43: 14.72 | N43: 17.4 | O43: 112.3 | P43: 58.56 | Q43: 6.733333333 | R43: 37 | T43: 44.16666667 | U43: 25.89705882 | X43: 4.32 | Y43: 1.3 | Z43: 10.2 | AA43: 2.31 | AE43: 1.14 | AF43: 7.39 | AG43: 35.63 | AH43: 17.4 | AI43: 112.3 | AJ43: 58.56 | AL43: 3.3 | AM43: 4.4 | AN43: 12.5 | AP43: 37 | AX43: 20.2 | AY43: 53 | AZ43: 59.3
A44: 2015-01-02 | B44: Jan 02 | C44: 2015-01-02 | D44: 01-Jan 02 | E44: 1 | F44: 2 | G44: 2015 | H44: 08:00:00 | I44: 3.93 | J44: 6.35 | K44: 2.1 | M44: 14.81333333 | N44: 21.3 | O44: 70 | P44: 45.12 | Q44: 8.325 | R44: 35 | T44: 38.7 | U44: 21.33277778 | X44: 3.93 | Y44: 2.1 | Z44: 10.6 | AA44: 2.1 | AE44: 1.81 | AF44: 9.27 | AG44: 33.36 | AH44: 21.3 | AI44: 70 | AJ44: 45.12 | AL44: 3 | AM44: 4.4 | AN44: 18.5 | AO44: 7.4 | AP44: 35 | AX44: 18.1 | AY44: 42.5 | AZ44: 55.5
A45: 2015-01-02 | B45: Jan 02 | C45: 2015-01-02 | D45: 01-Jan 02 | E45: 1 | F45: 2 | G45: 2015 | H45: 09:00:00 | I45: 3.05 | J45: 3.95 | K45: 1.83 | M45: 11.26333333 | N45: 15.7 | O45: 45 | P45: 26.04 | Q45: 22.675 | R45: 28 | T45: 31.5 | U45: 19.25055556 | X45: 3.05 | Y45: 2.3 | Z45: 5.6 | AA45: 1.83 | AE45: 2.04 | AF45: 9.33 | AG45: 22.42 | AH45: 15.7 | AI45: 45 | AJ45: 26.04 | AL45: 4 | AM45: 4.5 | AN45: 60.4 | AO45: 21.8 | AP45: 28 | AX45: 15.3 | AY45: 33.2 | AZ45: 46
A46: 2015-01-02 | B46: Jan 02 | C46: 2015-01-02 | D46: 01-Jan 02 | E46: 1 | F46: 2 | G46: 2015 | H46: 10:00:00 | I46: 2.28 | J46: 3.1 | K46: 1.62 | M46: 8.413333333 | N46: 9.7 | O46: 16.9 | P46: 17.17 | Q46: 16.225 | R46: 14 | T46: 21.86666667 | U46: 12.42277778 | X46: 2.28 | Y46: 2.3 | Z46: 3.9 | AA46: 1.62 | AE46: 1.84 | AF46: 4.24 | AG46: 19.16 | AH46: 9.7 | AI46: 16.9 | AJ46: 17.17 | AL46: 3.4 | AM46: 4.6 | AN46: 19.5 | AO46: 37.4 | AP46: 14 | AX46: 11.3 | AY46: 24.2 | AZ46: 30.1
A47: 2015-01-02 | B47: Jan 02 | C47: 2015-01-02 | D47: 01-Jan 02 | E47: 1 | F47: 2 | G47: 2015 | H47: 11:00:00 | I47: 1.52 | J47: 2.6 | K47: 1.49 | M47: 7.826666667 | O47: 8.6 | P47: 17.51 | Q47: 6.6 | R47: 12 | T47: 18.53333333 | U47: 8.929411765 | X47: 1.52 | Y47: 2.3 | Z47: 2.9 | AA47: 1.49 | AE47: 0.67 | AF47: 1.94 | AG47: 20.87 | AI47: 8.6 | AJ47: 17.51 | AL47: 4 | AM47: 4.7 | AN47: 5.8 | AO47: 11.9 | AP47: 12 | AX47: 11.4 | AY47: 21.9 | AZ47: 22.3
A48: 2015-01-02 | B48: Jan 02 | C48: 2015-01-02 | D48: 01-Jan 02 | E48: 1 | F48: 2 | G48: 2015 | H48: 12:00:00 | I48: 1.41 | J48: 2.45 | K48: 1.35 | M48: 8.62 | O48: 8.1 | P48: 14.42 | Q48: 5.4 | R48: 10 | T48: 17.33333333 | U48: 8.214117647 | X48: 1.41 | Y48: 2.2 | Z48: 2.7 | AA48: 1.35 | AE48: 0.58 | AF48: 1.68 | AG48: 23.6 | AI48: 8.1 | AJ48: 14.42 | AL48: 5.3 | AM48: 4.8 | AN48: 5 | AO48: 6.5 | AP48: 10 | AX48: 10.7 | AY48: 21.7 | AZ48: 19.6
A49: 2015-01-02 | B49: Jan 02 | C49: 2015-01-02 | D49: 01-Jan 02 | E49: 1 | F49: 2 | G49: 2015 | H49: 13:00:00 | I49: 0.96 | J49: 2.25 | K49: 1.2 | M49: 9.933333333 | O49: 11.4 | P49: 11.8 | Q49: 6.875 | R49: 10 | T49: 18.23333333 | U49: 8.932941176 | X49: 0.96 | Y49: 2.1 | Z49: 2.4 | AA49: 1.2 | AE49: 0.72 | AF49: 1.92 | AG49: 27.16 | AI49: 11.4 | AJ49: 11.8 | AL49: 6.6 | AM49: 4.8 | AN49: 6.8 | AO49: 9.3 | AP49: 10 | AX49: 9.7 | AY49: 25.2 | AZ49: 19.8
A50: 2015-01-02 | B50: Jan 02 | C50: 2015-01-02 | D50: 01-Jan 02 | E50: 1 | F50: 2 | G50: 2015 | H50: 14:00:00 | I50: 0.67 | J50: 2.05 | K50: 1.08 | M50: 10.7 | N50: 3.8 | O50: 11.8 | P50: 10.31 | Q50: 5.925 | R50: 10 | T50: 20.06666667 | U50: 8.764444444 | X50: 0.67 | Y50: 2 | Z50: 2.1 | AA50: 1.08 | AE50: 0.72 | AF50: 1.68 | AG50: 29.7 | AH50: 3.8 | AI50: 11.8 | AJ50: 10.31 | AL50: 9 | AM50: 4.9 | AN50: 4.1 | AO50: 5.7 | AP50: 10 | AX50: 10.7 | AY50: 23.5 | AZ50: 26
A51: 2015-01-02 | B51: Jan 02 | C51: 2015-01-02 | D51: 01-Jan 02 | E51: 1 | F51: 2 | G51: 2015 | H51: 15:00:00 | I51: 0.48 | J51: 1.85 | K51: 1.03 | M51: 11.6 | N51: 3.7 | O51: 13.3 | P51: 10.47 | Q51: 6 | R51: 12 | T51: 21.13333333 | U51: 9.271111111 | X51: 0.48 | Y51: 1.8 | Z51: 1.9 | AA51: 1.03 | AE51: 0.47 | AF51: 1.52 | AG51: 32.81 | AH51: 3.7 | AI51: 13.3 | AJ51: 10.47 | AL51: 8.9 | AM51: 5.2 | AN51: 5.3 | AO51: 4.6 | AP51: 12 | AX51: 10.8 | AY51: 27.8 | AZ51: 24.8
A52: 2015-01-02 | B52: Jan 02 | C52: 2015-01-02 | D52: 01-Jan 02 | E52: 1 | F52: 2 | G52: 2015 | H52: 16:00:00 | I52: 0.48 | J52: 1.6 | K52: 1 | M52: 13.87333333 | N52: 5.1 | O52: 22.2 | P52: 13.42 | Q52: 7.25 | R52: 17 | T52: 28.03333333 | U52: 12.06222222 | X52: 0.48 | Y52: 1.6 | Z52: 1.6 | AA52: 1 | AE52: 0.41 | AF52: 1.68 | AG52: 39.53 | AH52: 5.1 | AI52: 22.2 | AJ52: 13.42 | AL52: 8.5 | AM52: 5.4 | AN52: 9.8 | AO52: 5.3 | AP52: 17 | AX52: 11.8 | AY52: 36.8 | AZ52: 35.5
A53: 2015-01-02 | B53: Jan 02 | C53: 2015-01-02 | D53: 01-Jan 02 | E53: 1 | F53: 2 | G53: 2015 | H53: 17:00:00 | I53: 0.35 | J53: 1.5 | K53: 0.99 | M53: 13.31666667 | N53: 9.1 | O53: 39.2 | P53: 21.36 | Q53: 8 | R53: 26 | T53: 41.66666667 | U53: 16.49722222 | X53: 0.35 | Y53: 1.4 | Z53: 1.6 | AA53: 0.99 | AE53: 0.65 | AF53: 1.9 | AG53: 37.4 | AH53: 9.1 | AI53: 39.2 | AJ53: 21.36 | AL53: 7.8 | AM53: 5.6 | AN53: 13.4 | AO53: 5.2 | AP53: 26 | AX53: 20.1 | AY53: 61.9 | AZ53: 43
A54: 2015-01-02 | B54: Jan 02 | C54: 2015-01-02 | D54: 01-Jan 02 | E54: 1 | F54: 2 | G54: 2015 | H54: 18:00:00 | I54: 0.43 | J54: 1.5 | K54: 1.01 | M54: 12.41666667 | N54: 11 | O54: 75.8 | P54: 63.75 | Q54: 8.8 | R54: 29 | T54: 60.5 | U54: 24.33 | X54: 0.43 | Y54: 1.3 | Z54: 1.7 | AA54: 1.01 | AE54: 0.49 | AF54: 2.01 | AG54: 34.75 | AH54: 11 | AI54: 75.8 | AJ54: 63.75 | AL54: 8.8 | AM54: 6 | AN54: 15.5 | AO54: 4.9 | AP54: 29 | AX54: 40.1 | AY54: 84.8 | AZ54: 56.6
A55: 2015-01-02 | B55: Jan 02 | C55: 2015-01-02 | D55: 01-Jan 02 | E55: 1 | F55: 2 | G55: 2015 | H55: 19:00:00 | I55: 0.56 | J55: 1.7 | K55: 1.02 | M55: 12.15 | N55: 12.1 | O55: 123.8 | P55: 87.74 | Q55: 9.625 | R55: 35 | T55: 75.13333333 | U55: 31.33166667 | X55: 0.56 | Y55: 1.3 | Z55: 2.1 | AA55: 1.02 | AE55: 0.34 | AF55: 2.01 | AG55: 34.1 | AH55: 12.1 | AI55: 123.8 | AJ55: 87.74 | AL55: 6.9 | AM55: 6.9 | AN55: 19.2 | AO55: 5.5 | AP55: 35 | AX55: 61.2 | AY55: 91.9 | AZ55: 72.3
A56: 2015-01-02 | B56: Jan 02 | C56: 2015-01-02 | D56: 01-Jan 02 | E56: 1 | F56: 2 | G56: 2015 | H56: 20:00:00 | I56: 0.49 | J56: 1.55 | K56: 1.01 | M56: 12.915 | N56: 13.1 | O56: 142.1 | P56: 135.68 | Q56: 12.3 | R56: 47 | T56: 79.4 | U56: 38.57117647 | X56: 0.49 | Y56: 1.3 | Z56: 1.8 | AA56: 1.01 | AE56: 0.42 | AG56: 25.41 | AH56: 13.1 | AI56: 142.1 | AJ56: 135.68 | AL56: 6.4 | AM56: 7.4 | AN56: 29.6 | AO56: 5.8 | AP56: 47 | AX56: 105.9 | AY56: 87.5 | AZ56: 44.8
A57: 2015-01-02 | B57: Jan 02 | C57: 2015-01-02 | D57: 01-Jan 02 | E57: 1 | F57: 2 | G57: 2015 | H57: 21:00:00 | I57: 0.59 | J57: 1.65 | K57: 0.98 | M57: 13.7 | N57: 14.4 | O57: 114.6 | P57: 161.06 | Q57: 13.25 | R57: 63 | T57: 90.26666667 | U57: 41.71352941 | X57: 0.59 | Y57: 1.3 | Z57: 2 | AA57: 0.98 | AE57: 0.24 | AG57: 27.16 | AH57: 14.4 | AI57: 114.6 | AJ57: 161.06 | AL57: 5.4 | AM57: 7.1 | AN57: 32 | AO57: 8.5 | AP57: 63 | AX57: 79.1 | AY57: 101.2 | AZ57: 90.5
A58: 2015-01-02 | B58: Jan 02 | C58: 2015-01-02 | D58: 01-Jan 02 | E58: 1 | F58: 2 | G58: 2015 | H58: 22:00:00 | I58: 0.67 | J58: 2.45 | K58: 0.92 | M58: 0.78 | N58: 8.1 | O58: 106.9 | P58: 213.95 | Q58: 14.975 | R58: 69 | T58: 99.86666667 | U58: 45.02941176 | X58: 0.67 | Y58: 1.2 | Z58: 3.7 | AA58: 0.92 | AE58: 0.18 | AF58: 1.38 | AH58: 8.1 | AI58: 106.9 | AJ58: 213.95 | AL58: 4.6 | AM58: 6.4 | AN58: 32.3 | AO58: 16.6 | AP58: 69 | AX58: 69.5 | AY58: 124.1 | AZ58: 106
A59: 2015-01-02 | B59: Jan 02 | C59: 2015-01-02 | D59: 01-Jan 02 | E59: 1 | F59: 2 | G59: 2015 | H59: 23:00:00 | I59: 0.8 | J59: 2.3 | K59: 0.89 | M59: 0.615 | N59: 4.3 | O59: 107.3 | P59: 220.1 | Q59: 16.425 | R59: 47 | T59: 97.66666667 | U59: 43.81882353 | X59: 0.8 | Y59: 1.1 | Z59: 3.5 | AA59: 0.89 | AE59: 0.22 | AF59: 1.01 | AH59: 4.3 | AI59: 107.3 | AJ59: 220.1 | AL59: 4.3 | AM59: 5.3 | AN59: 37.1 | AO59: 19 | AP59: 47 | AX59: 69.8 | AY59: 109.6 | AZ59: 113.6
A60: 2015-01-03 | B60: Jan 03 | C60: 2015-01-03 | D60: 01-Jan 03 | E60: 1 | F60: 3 | G60: 2015 | H60: 00:00:00 | I60: 0.7 | J60: 1.9 | K60: 0.85 | M60: 5.733333333 | N60: 5.7 | O60: 36.3 | P60: 231.14 | Q60: 20.875 | R60: 43 | T60: 72.53333333 | U60: 35.54388889 | X60: 0.7 | Y60: 1.1 | Z60: 2.7 | AA60: 0.85 | AE60: 0.21 | AF60: 0.99 | AG60: 16 | AH60: 5.7 | AI60: 36.3 | AJ60: 231.14 | AL60: 5.3 | AM60: 5.6 | AN60: 40.3 | AO60: 32.3 | AP60: 43 | AX60: 70.6 | AY60: 67.2 | AZ60: 79.8
A61: 2015-01-03 | B61: Jan 03 | C61: 2015-01-03 | D61: 01-Jan 03 | E61: 1 | F61: 3 | G61: 2015 | H61: 01:00:00 | I61: 0.44 | J61: 2.1 | M61: 4.016666667 | N61: 9.1 | O61: 69 | P61: 243.1 | Q61: 22.725 | R61: 32 | T61: 80.55 | U61: 38.868125 | X61: 0.44 | Y61: 1 | Z61: 3.2 | AE61: 0.94 | AF61: 0.96 | AG61: 10.15 | AH61: 9.1 | AI61: 69 | AJ61: 243.1 | AL61: 7.3 | AM61: 7.9 | AN61: 47.4 | AO61: 28.3 | AP61: 32 | AY61: 79.4 | AZ61: 81.7
A62: 2015-01-03 | B62: Jan 03 | C62: 2015-01-03 | D62: 01-Jan 03 | E62: 1 | F62: 3 | G62: 2015 | H62: 02:00:00 | I62: 0.36 | J62: 2.5 | K62: 0.69 | M62: 4.633333333 | N62: 10.9 | O62: 106.4 | P62: 185.67 | Q62: 27.7 | R62: 32 | T62: 95.93333333 | U62: 41.86222222 | X62: 0.36 | Y62: 0.9 | Z62: 4.1 | AA62: 0.69 | AE62: 0.27 | AF62: 0.95 | AG62: 12.68 | AH62: 10.9 | AI62: 106.4 | AJ62: 185.67 | AL62: 9.3 | AM62: 6.3 | AN62: 66.7 | AO62: 28.5 | AP62: 32 | AX62: 71.3 | AY62: 105.4 | AZ62: 111.1
A63: 2015-01-03 | B63: Jan 03 | C63: 2015-01-03 | D63: 01-Jan 03 | E63: 1 | F63: 3 | G63: 2015 | H63: 03:00:00 | I63: 0.39 | J63: 2.55 | K63: 0.87 | M63: 6.89 | N63: 10.9 | O63: 56.6 | P63: 104.4 | Q63: 23.775 | R63: 51 | T63: 95.66666667 | U63: 35.11277778 | X63: 0.39 | Y63: 0.8 | Z63: 4.3 | AA63: 0.87 | AE63: 1.28 | AF63: 0.91 | AG63: 18.48 | AH63: 10.9 | AI63: 56.6 | AJ63: 104.4 | AL63: 10.2 | AM63: 5.5 | AN63: 53.4 | AO63: 26 | AP63: 51 | AX63: 68.4 | AY63: 108.1 | AZ63: 110.5
A64: 2015-01-03 | B64: Jan 03 | C64: 2015-01-03 | D64: 01-Jan 03 | E64: 1 | F64: 3 | G64: 2015 | H64: 04:00:00 | I64: 0.53 | J64: 2.65 | K64: 0.86 | M64: 6.653333333 | N64: 11.6 | O64: 80 | P64: 60.61 | Q64: 22.975 | R64: 45 | T64: 83.6 | U64: 31.47555556 | X64: 0.53 | Y64: 0.8 | Z64: 4.5 | AA64: 0.86 | AE64: 0.44 | AF64: 0.82 | AG64: 18.7 | AH64: 11.6 | AI64: 80 | AJ64: 60.61 | AL64: 6.2 | AM64: 5.3 | AN64: 50.4 | AO64: 30 | AP64: 45 | AX64: 71.8 | AY64: 79 | AZ64: 100
A65: 2015-01-03 | B65: Jan 03 | C65: 2015-01-03 | D65: 01-Jan 03 | E65: 1 | F65: 3 | G65: 2015 | H65: 05:00:00 | I65: 0.52 | J65: 3.6 | K65: 0.82 | M65: 9.036666667 | N65: 15.2 | O65: 53.3 | P65: 52.85 | Q65: 15.925 | R65: 48 | T65: 62.86666667 | U65: 25.40555556 | X65: 0.52 | Y65: 0.7 | Z65: 6.5 | AA65: 0.82 | AE65: 0.83 | AF65: 0.58 | AG65: 25.7 | AH65: 15.2 | AI65: 53.3 | AJ65: 52.85 | AL65: 5.6 | AM65: 4.6 | AN65: 26.1 | AO65: 27.4 | AP65: 48 | AX65: 59.9 | AY65: 54.7 | AZ65: 74
A66: 2015-01-03 | B66: Jan 03 | C66: 2015-01-03 | D66: 01-Jan 03 | E66: 1 | F66: 3 | G66: 2015 | H66: 06:00:00 | I66: 0.53 | J66: 2.95 | K66: 0.78 | M66: 8.383333333 | N66: 22.5 | O66: 45.6 | P66: 43.15 | Q66: 12.925 | R66: 75 | T66: 49.7 | U66: 23.30055556 | X66: 0.53 | Y66: 0.7 | Z66: 5.2 | AA66: 0.78 | AE66: 0.74 | AF66: 0.72 | AG66: 23.69 | AH66: 22.5 | AI66: 45.6 | AJ66: 43.15 | AL66: 6.3 | AM66: 4.7 | AN66: 15.9 | AO66: 24.8 | AP66: 75 | AX66: 32.7 | AY66: 50.4 | AZ66: 66
A67: 2015-01-03 | B67: Jan 03 | C67: 2015-01-03 | D67: 01-Jan 03 | E67: 1 | F67: 3 | G67: 2015 | H67: 07:00:00 | I67: 0.84 | J67: 4.25 | K67: 0.71 | M67: 11.24 | N67: 26.6 | O67: 37.9 | P67: 35.67 | Q67: 12.65 | R67: 88 | T67: 48.33333333 | U67: 23.75222222 | X67: 0.84 | Y67: 0.6 | Z67: 7.9 | AA67: 0.71 | AE67: 0.89 | AF67: 0.79 | AG67: 32.04 | AH67: 26.6 | AI67: 37.9 | AJ67: 35.67 | AL67: 7.7 | AM67: 4.7 | AN67: 17.2 | AO67: 21 | AP67: 88 | AX67: 40.3 | AY67: 44.2 | AZ67: 60.5
A68: 2015-01-03 | B68: Jan 03 | C68: 2015-01-03 | D68: 01-Jan 03 | E68: 1 | F68: 3 | G68: 2015 | H68: 08:00:00 | I68: 0.84 | J68: 3 | K68: 0.76 | M68: 16.16666667 | N68: 23.2 | O68: 30.1 | P68: 46.06 | Q68: 12.55 | R68: 43 | T68: 40.86666667 | U68: 20.62555556 | X68: 0.84 | Y68: 0.6 | Z68: 5.4 | AA68: 0.76 | AE68: 0.71 | AF68: 0.92 | AG68: 46.87 | AH68: 23.2 | AI68: 30.1 | AJ68: 46.06 | AL68: 7.5 | AM68: 4.6 | AN68: 20.7 | AO68: 17.4 | AP68: 43 | AX68: 39.8 | AY68: 34.7 | AZ68: 48.1
A69: 2015-01-03 | B69: Jan 03 | C69: 2015-01-03 | D69: 01-Jan 03 | E69: 1 | F69: 3 | G69: 2015 | H69: 09:00:00 | I69: 0.78 | J69: 2.7 | K69: 0.89 | M69: 13.77666667 | N69: 7.3 | O69: 25.4 | P69: 45.14 | Q69: 11.125 | R69: 37 | T69: 34.96666667 | U69: 17.36888889 | X69: 0.78 | Y69: 0.6 | Z69: 4.8 | AA69: 0.89 | AE69: 1.29 | AF69: 2.94 | AG69: 37.1 | AH69: 7.3 | AI69: 25.4 | AJ69: 45.14 | AL69: 7.1 | AM69: 4.6 | AN69: 18.4 | AO69: 14.4 | AP69: 37 | AX69: 40.7 | AY69: 28.3 | AZ69: 35.9
A70: 2015-01-03 | B70: Jan 03 | C70: 2015-01-03 | D70: 01-Jan 03 | E70: 1 | F70: 3 | G70: 2015 | H70: 10:00:00 | I70: 0.59 | J70: 3.1 | K70: 1.06 | M70: 12.44333333 | N70: 5.2 | O70: 21.1 | P70: 31.11 | Q70: 10.075 | R70: 40 | T70: 29.4 | U70: 14.21705882 | X70: 0.59 | Y70: 0.7 | Z70: 5.5 | AA70: 1.06 | AE70: 1.26 | AF70: 6.13 | AG70: 29.94 | AH70: 5.2 | AI70: 21.1 | AJ70: 31.11 | AL70: 6.9 | AM70: 4.9 | AN70: 15.4 | AO70: 13.1 | AP70: 40 | AY70: 28.8 | AZ70: 30
A71: 2015-01-03 | B71: Jan 03 | C71: 2015-01-03 | D71: 01-Jan 03 | E71: 1 | F71: 3 | G71: 2015 | H71: 11:00:00 | I71: 0.78 | J71: 2.9 | K71: 1.08 | M71: 9.86 | N71: 5.3 | O71: 23.2 | P71: 24.91 | Q71: 8.3 | R71: 38 | T71: 30.5 | U71: 13.10882353 | X71: 0.78 | Y71: 0.7 | Z71: 5.1 | AA71: 1.08 | AE71: 0.74 | AF71: 3.96 | AG71: 24.88 | AH71: 5.3 | AI71: 23.2 | AJ71: 24.91 | AL71: 7.2 | AM71: 5 | AN71: 10.3 | AO71: 10.7 | AP71: 38 | AY71: 30.6 | AZ71: 30.4
A72: 2015-01-03 | B72: Jan 03 | C72: 2015-01-03 | D72: 01-Jan 03 | E72: 1 | F72: 3 | G72: 2015 | H72: 12:00:00 | I72: 0.57 | J72: 2.8 | K72: 1.07 | M72: 8.33 | N72: 3.7 | O72: 26.1 | P72: 26.58 | Q72: 8.825 | R72: 39 | T72: 38.7 | U72: 14.13588235 | X72: 0.57 | Y72: 0.9 | Z72: 4.7 | AA72: 1.07 | AE72: 0.69 | AF72: 4.39 | AG72: 19.91 | AH72: 3.7 | AI72: 26.1 | AJ72: 26.58 | AL72: 7.4 | AM72: 5 | AN72: 11.2 | AO72: 11.7 | AP72: 39 | AY72: 36.8 | AZ72: 40.6
A73: 2015-01-03 | B73: Jan 03 | C73: 2015-01-03 | D73: 01-Jan 03 | E73: 1 | F73: 3 | G73: 2015 | H73: 13:00:00 | I73: 0.48 | J73: 2.35 | K73: 1.01 | M73: 8.03 | N73: 4.5 | O73: 31.2 | P73: 25.51 | Q73: 9.825 | R73: 43 | T73: 41.5 | U73: 16.57166667 | X73: 0.48 | Y73: 1 | Z73: 3.7 | AA73: 1.01 | AE73: 0.68 | AF73: 4.13 | AG73: 19.28 | AH73: 4.5 | AI73: 31.2 | AJ73: 25.51 | AL73: 7.2 | AM73: 4.8 | AN73: 14.1 | AO73: 13.2 | AP73: 43 | AX73: 20.6 | AY73: 51.8 | AZ73: 52.1
A74: 2015-01-03 | B74: Jan 03 | C74: 2015-01-03 | D74: 01-Jan 03 | E74: 1 | F74: 3 | G74: 2015 | H74: 14:00:00 | I74: 0.42 | J74: 3.4 | K74: 0.99 | M74: 6.776666667 | N74: 6.2 | O74: 31.5 | P74: 29.2 | Q74: 10.95 | R74: 47 | T74: 31.3 | U74: 15.56333333 | X74: 0.42 | Y74: 1.9 | Z74: 4.9 | AA74: 0.99 | AE74: 0.54 | AF74: 5.14 | AG74: 14.65 | AH74: 6.2 | AI74: 31.5 | AJ74: 29.2 | AL74: 6.5 | AM74: 4.6 | AN74: 16.2 | AO74: 16.5 | AP74: 47 | AX74: 16.5 | AY74: 40.2 | AZ74: 37.2
A75: 2015-01-03 | B75: Jan 03 | C75: 2015-01-03 | D75: 01-Jan 03 | E75: 1 | F75: 3 | G75: 2015 | H75: 15:00:00 | I75: 0.46 | J75: 6.5 | K75: 1.02 | M75: 7.046666667 | N75: 5.9 | O75: 30.7 | P75: 32.53 | Q75: 12.05 | R75: 59 | T75: 35 | U75: 17.60833333 | X75: 0.46 | Y75: 6.6 | Z75: 6.4 | AA75: 1.02 | AE75: 0.63 | AF75: 6.43 | AG75: 14.08 | AH75: 5.9 | AI75: 30.7 | AJ75: 32.53 | AL75: 6.6 | AM75: 4.4 | AN75: 19 | AO75: 18.2 | AP75: 59 | AX75: 16.9 | AY75: 44.5 | AZ75: 43.6
A76: 2015-01-03 | B76: Jan 03 | C76: 2015-01-03 | D76: 01-Jan 03 | E76: 1 | F76: 3 | G76: 2015 | H76: 16:00:00 | I76: =IF(COUNT(V76:X76)=0,"",AVERAGE(V76:X76)) -> 0.64 | J76: 6.55 | K76: 1.07 | M76: 6.163333333 | N76: 4.2 | O76: 28 | P76: 27.94 | Q76: =IF(COUNT(AK76:AO76)=0,"",AVERAGE(AK76:AO76)) -> 10.9 | R76: =IF(COUNT(AP76:AQ76)=0,"",AVERAGE(AP76:AQ76)) -> 55 | S76: =IF(COUNT(AR76:AW76)=0,"",AVERAGE(AR76:AW76)) ->  | T76: =IF(COUNT(AX76:AZ76)=0,"",AVERAGE(AX76:AZ76)) -> 30.73333333 | U76: =IF(COUNT(V76:AZ76)=0,"",AVERAGE(V76:AZ76)) -> 15.79111111 | X76: 0.64 | Y76: 7.7 | Z76: 5.4 | AA76: 1.07 | AE76: 0.98 | AF76: 5.47 | AG76: 12.04 | AH76: 4.2 | AI76: 28 | AJ76: 27.94 | AL76: 5 | AM76: 4.2 | AN76: 18.1 | AO76: 16.3 | AP76: 55 | AX76: 17.8 | AY76: 36.5 | AZ76: 37.9
A77: 2015-01-03 | B77: Jan 03 | C77: =DATE(G77,E77,F77) -> 2015-01-03 | D77: =TEXT(E77,"00")&"-"&TEXT(C77,"MMM")&" "&TEXT(F77,"00") -> 01-Jan 03 | E77: 1 | F77: 3 | G77: 2015 | H77: 17:00:00 | I77: 0.73 | J77: =IF(COUNT(Y77:Z77)=0,"",AVERAGE(Y77:Z77)) -> 6.7 | K77: =IF(COUNT(AA77)=0,"",AA77) -> 1.23 | L77: =IF(COUNT(AB77:AC77)=0,"",AVERAGE(AB77:AC77)) ->  | M77: =IF(COUNT(AD77:AG77)=0,"",AVERAGE(AD77:AG77)) -> 5.32 | N77: =IF(COUNT(AH77)=0,"",AH77) -> 5 | O77: =IF(COUNT(AI77)=0,"",AI77) -> 26.8 | P77: =IF(COUNT(AJ77)=0,"",AJ77) -> 34.38 | Q77: 11.625 | R77: 52 | T77: 35.46666667 | U77: 16.8 | X77: 0.73 | Y77: 8.3 | Z77: 5.1 | AA77: 1.23 | AE77: 0.65 | AF77: 3.93 | AG77: 11.38 | AH77: 5 | AI77: 26.8 | AJ77: 34.38 | AL77: 3.7 | AM77: 3.9 | AN77: 20.9 | AO77: 18 | AP77: 52 | AX77: 44.1 | AY77: 30.4 | AZ77: 31.9
A78: 2015-01-03 | B78: Jan 03 | C78: 2015-01-03 | D78: 01-Jan 03 | E78: 1 | F78: 3 | G78: 2015 | H78: 18:00:00 | I78: 0.58 | J78: 5.15 | K78: 1.36 | M78: 7.875 | N78: 5.4 | O78: 23 | P78: 31.85 | Q78: 10.65 | R78: 60 | T78: 42.2 | U78: 18.67294118 | X78: 0.58 | Y78: 6.1 | Z78: 4.2 | AA78: 1.36 | AF78: 3.59 | AG78: 12.16 | AH78: 5.4 | AI78: 23 | AJ78: 31.85 | AL78: 3.5 | AM78: 3.7 | AN78: 17 | AO78: 18.4 | AP78: 60 | AX78: 52.1 | AY78: 37.3 | AZ78: 37.2
A79: 2015-01-03 | B79: Jan 03 | C79: 2015-01-03 | D79: 01-Jan 03 | E79: 1 | F79: 3 | G79: 2015 | H79: 19:00:00 | I79: 0.56 | J79: 4.45 | K79: 1.48 | M79: 6.023333333 | N79: 4.6 | O79: 22.9 | P79: 27.98 | Q79: 10.975 | R79: 60 | T79: 35.4 | U79: 16.36611111 | X79: 0.56 | Y79: 3.9 | Z79: 5 | AA79: 1.48 | AE79: 1.07 | AF79: 2.71 | AG79: 14.29 | AH79: 4.6 | AI79: 22.9 | AJ79: 27.98 | AL79: 3.7 | AM79: 3.3 | AN79: 20.1 | AO79: 16.8 | AP79: 60 | AX79: 52.2 | AY79: 29.7 | AZ79: 24.3
A80: 2015-01-03 | B80: Jan 03 | C80: 2015-01-03 | D80: 01-Jan 03 | E80: 1 | F80: 3 | G80: 2015 | H80: 20:00:00 | I80: 0.32 | J80: 4.35 | K80: 1.77 | M80: 5.9 | N80: 5.2 | O80: 26.4 | P80: 29.23 | Q80: 12.325 | R80: 56 | T80: 36.7 | U80: 16.92888889 | X80: 0.32 | Y80: 3.3 | Z80: 5.4 | AA80: 1.77 | AE80: 0.84 | AF80: 2.28 | AG80: 14.58 | AH80: 5.2 | AI80: 26.4 | AJ80: 29.23 | AL80: 3.1 | AM80: 2.9 | AN80: 24.3 | AO80: 19 | AP80: 56 | AX80: 52.9 | AY80: 31.4 | AZ80: 25.8
A81: 2015-01-03 | B81: Jan 03 | C81: 2015-01-03 | D81: 01-Jan 03 | E81: 1 | F81: 3 | G81: 2015 | H81: 21:00:00 | I81: 0.3 | J81: 4.6 | K81: 1.73 | M81: 6.03 | N81: 8.2 | O81: 23.2 | P81: 37.31 | Q81: 12.7 | R81: 41 | T81: 46.2 | U81: 18.24611111 | X81: 0.3 | Y81: 3 | Z81: 6.2 | AA81: 1.73 | AE81: 1 | AF81: 2.6 | AG81: 14.49 | AH81: 8.2 | AI81: 23.2 | AJ81: 37.31 | AL81: 3.8 | AM81: 2.5 | AN81: 22 | AO81: 22.5 | AP81: 41 | AX81: 76.6 | AY81: 30 | AZ81: 32
A82: 2015-01-03 | B82: Jan 03 | C82: 2015-01-03 | D82: 01-Jan 03 | E82: 1 | F82: 3 | G82: 2015 | H82: 22:00:00 | I82: 0.27 | J82: 4.9 | K82: 1.54 | M82: 6.603333333 | N82: 7 | O82: 23.5 | P82: 37.34 | Q82: 12.55 | R82: 29 | T82: 50.73333333 | U82: 18.37 | X82: 0.27 | Y82: 3 | Z82: 6.8 | AA82: 1.54 | AE82: 0.65 | AF82: 3.06 | AG82: 16.1 | AH82: 7 | AI82: 23.5 | AJ82: 37.34 | AL82: 3.3 | AM82: 2.3 | AN82: 22.8 | AO82: 21.8 | AP82: 29 | AX82: 84 | AY82: 38.4 | AZ82: 29.8
A83: 2015-01-03 | B83: Jan 03 | C83: 2015-01-03 | D83: 01-Jan 03 | E83: 1 | F83: 3 | G83: 2015 | H83: 23:00:00 | I83: 0.26 | J83: 4.8 | K83: 1.35 | M83: 7.566666667 | N83: 7.4 | O83: 32.3 | P83: 37.62 | Q83: 14.95 | R83: 26 | T83: 57.03333333 | U83: 20.45166667 | X83: 0.26 | Y83: 2.9 | Z83: 6.7 | AA83: 1.35 | AE83: 0.64 | AF83: 3.36 | AG83: 18.7 | AH83: 7.4 | AI83: 32.3 | AJ83: 37.62 | AL83: 3.1 | AM83: 2.3 | AN83: 26.2 | AO83: 28.2 | AP83: 26 | AX83: 86.7 | AY83: 44.8 | AZ83: 39.6
A84: 2015-01-04 | B84: Jan 04 | C84: 2015-01-04 | D84: 01-Jan 04 | E84: 1 | F84: 4 | G84: 2015 | H84: 00:00:00 | I84: 0.33 | J84: 4.05 | K84: 1.21 | M84: 9.096666667 | N84: 8.8 | O84: 40.7 | P84: 40.82 | Q84: 18.025 | T84: 61.73333333 | U84: 22.62058824 | X84: 0.33 | Y84: 2.9 | Z84: 5.2 | AA84: 1.21 | AE84: 0.92 | AF84: 3.37 | AG84: 23 | AH84: 8.8 | AI84: 40.7 | AJ84: 40.82 | AL84: 6 | AM84: 2.4 | AN84: 31.5 | AO84: 32.2 | AX84: 80.7 | AY84: 55.8 | AZ84: 48.7
A85: 2015-01-04 | B85: Jan 04 | C85: 2015-01-04 | D85: 01-Jan 04 | E85: 1 | F85: 4 | G85: 2015 | H85: 01:00:00 | I85: 0.39 | J85: 3.1 | M85: 10.34 | N85: 7.7 | O85: 37.9 | P85: 27 | Q85: 18.925 | T85: 64.55 | U85: 21.76214286 | X85: 0.39 | Y85: 2.8 | Z85: 3.4 | AF85: 3.11 | AG85: 17.57 | AH85: 7.7 | AI85: 37.9 | AJ85: 27 | AL85: 4.7 | AM85: 2.6 | AN85: 32.9 | AO85: 35.5 | AY85: 61 | AZ85: 68.1
A86: 2015-01-04 | B86: Jan 04 | C86: 2015-01-04 | D86: 01-Jan 04 | E86: 1 | F86: 4 | G86: 2015 | H86: 02:00:00 | I86: 0.4 | J86: 2.7 | K86: 0.71 | M86: 2.93 | N86: 10.3 | O86: 24.9 | P86: 16.81 | Q86: 13.125 | T86: 79.73333333 | U86: 23.54333333 | X86: 0.4 | Y86: 2.5 | Z86: 2.9 | AA86: 0.71 | AF86: 2.93 | AH86: 10.3 | AI86: 24.9 | AJ86: 16.81 | AL86: 5 | AM86: 2.5 | AN86: 21.4 | AO86: 23.6 | AX86: 86.5 | AY86: 78.2 | AZ86: 74.5
A87: 2015-01-04 | B87: Jan 04 | C87: 2015-01-04 | D87: 01-Jan 04 | E87: 1 | F87: 4 | G87: 2015 | H87: 03:00:00 | I87: 0.27 | J87: 2.4 | K87: 0.79 | M87: 3.06 | N87: 10.1 | O87: 13 | P87: 12.77 | Q87: 4.45 | R87: 37 | T87: 39.6 | U87: 14.96357143 | X87: 0.27 | Y87: 2.2 | Z87: 2.6 | AA87: 0.79 | AF87: 3.06 | AH87: 10.1 | AI87: 13 | AJ87: 12.77 | AM87: 0.8 | AN87: 8.1 | AP87: 37 | AX87: 32.1 | AY87: 48.8 | AZ87: 37.9
A88: 2015-01-04 | B88: Jan 04 | C88: 2015-01-04 | D88: 01-Jan 04 | E88: 1 | F88: 4 | G88: 2015 | H88: 04:00:00 | I88: 0.28 | J88: 2.15 | K88: 0.8 | M88: 1.54 | N88: 12 | O88: 9.2 | P88: 12.63 | Q88: 3.5 | R88: 53 | T88: 29.1 | U88: 12.068125 | X88: 0.28 | Y88: 1.9 | Z88: 2.4 | AA88: 0.8 | AE88: 0.5 | AF88: 2.58 | AH88: 12 | AI88: 9.2 | AJ88: 12.63 | AL88: 3.6 | AM88: 1 | AN88: 5.9 | AP88: 53 | AX88: 3.6 | AY88: 39.2 | AZ88: 44.5
A89: 2015-01-04 | B89: Jan 04 | C89: 2015-01-04 | D89: 01-Jan 04 | E89: 1 | F89: 4 | G89: 2015 | H89: 05:00:00 | I89: 0.23 | J89: 1.8 | K89: 0.81 | M89: 8.863333333 | N89: 12.5 | O89: 8.7 | P89: 12.98 | Q89: 3.666666667 | R89: 46 | T89: 19.16666667 | U89: 10.58294118 | X89: 0.23 | Y89: 1.6 | Z89: 2 | AA89: 0.81 | AE89: 0.6 | AF89: 1.61 | AG89: 24.38 | AH89: 12.5 | AI89: 8.7 | AJ89: 12.98 | AL89: 4 | AM89: 1.1 | AN89: 5.9 | AP89: 46 | AX89: 3.2 | AY89: 25.4 | AZ89: 28.9
A90: 2015-01-04 | B90: Jan 04 | C90: 2015-01-04 | D90: 01-Jan 04 | E90: 1 | F90: 4 | G90: 2015 | H90: 06:00:00 | I90: 0.26 | J90: 1.55 | K90: 0.82 | M90: 15.13666667 | N90: 10.9 | O90: 8.1 | P90: 18.16 | Q90: 4.35 | R90: 38 | T90: 14.75 | U90: 10.09705882 | X90: 0.26 | Y90: 1.5 | Z90: 1.6 | AA90: 0.82 | AE90: 1.13 | AF90: 1.42 | AG90: 42.86 | AH90: 10.9 | AI90: 8.1 | AJ90: 18.16 | AL90: 3.2 | AM90: 1.6 | AN90: 6.3 | AO90: 6.3 | AP90: 38 | AX90: 5.3 | AY90: 24.2
A91: 2015-01-04 | B91: Jan 04 | C91: 2015-01-04 | D91: 01-Jan 04 | E91: 1 | F91: 4 | G91: 2015 | H91: 07:00:00 | I91: 0.42 | J91: 2.85 | K91: 0.82 | M91: 11.30666667 | N91: 15.2 | O91: 10.2 | P91: 14.75 | Q91: 5 | R91: 29 | T91: 14.1 | U91: 9.306470588 | X91: 0.42 | Y91: 1.3 | Z91: 4.4 | AA91: 0.82 | AE91: 1.04 | AF91: 1.37 | AG91: 31.51 | AH91: 15.2 | AI91: 10.2 | AJ91: 14.75 | AL91: 3.8 | AM91: 2.1 | AN91: 7.5 | AO91: 6.6 | AP91: 29 | AX91: 4.4 | AY91: 23.8
A92: 2015-01-04 | B92: Jan 04 | C92: 2015-01-04 | D92: 01-Jan 04 | E92: 1 | F92: 4 | G92: 2015 | H92: 08:00:00 | I92: 0.36 | J92: 4.25 | K92: 0.85 | M92: 11.56666667 | N92: 17.7 | O92: 12.6 | P92: 14.61 | Q92: 4.15 | R92: 25 | T92: 18.35 | U92: 9.86 | X92: 0.36 | Y92: 1.1 | Z92: 7.4 | AA92: 0.85 | AE92: 1.33 | AF92: 1.91 | AG92: 31.46 | AH92: 17.7 | AI92: 12.6 | AJ92: 14.61 | AL92: 3.5 | AM92: 2.5 | AN92: 5.1 | AO92: 5.5 | AP92: 25 | AX92: 3.2 | AY92: 33.5
A93: 2015-01-04 | B93: Jan 04 | C93: 2015-01-04 | D93: 01-Jan 04 | E93: 1 | F93: 4 | G93: 2015 | H93: 09:00:00 | I93: 0.41 | J93: 5.25 | K93: 0.9 | M93: 14.54333333 | N93: 26.7 | O93: 10 | P93: 11.31 | Q93: 3.525 | R93: 23 | T93: 21.96666667 | U93: 11.46944444 | X93: 0.41 | Y93: 1 | Z93: 9.5 | AA93: 0.9 | AE93: 1.65 | AF93: 2.14 | AG93: 39.84 | AH93: 26.7 | AI93: 10 | AJ93: 11.31 | AL93: 3 | AM93: 3.3 | AN93: 3.2 | AO93: 4.6 | AP93: 23 | AX93: 3.5 | AY93: 28.3 | AZ93: 34.1
A94: 2015-01-04 | B94: Jan 04 | C94: 2015-01-04 | D94: 01-Jan 04 | E94: 1 | F94: 4 | G94: 2015 | H94: 10:00:00 | I94: 0.39 | J94: 5.35 | K94: 0.95 | M94: 12.03 | N94: 36.6 | O94: 8.3 | P94: 9.42 | Q94: 3.175 | R94: 23 | T94: 18.06666667 | U94: 10.68611111 | X94: 0.39 | Y94: 1 | Z94: 9.7 | AA94: 0.95 | AE94: 2.27 | AF94: 3.62 | AG94: 30.2 | AH94: 36.6 | AI94: 8.3 | AJ94: 9.42 | AL94: 2.6 | AM94: 2.4 | AN94: 3.2 | AO94: 4.5 | AP94: 23 | AX94: 1.9 | AY94: 23.4 | AZ94: 28.9
A95: 2015-01-04 | B95: Jan 04 | C95: 2015-01-04 | D95: 01-Jan 04 | E95: 1 | F95: 4 | G95: 2015 | H95: 11:00:00 | I95: 0.46 | J95: 5.45 | K95: 0.95 | M95: 13.2 | N95: 27.3 | O95: 5.9 | P95: 12.42 | Q95: 3.2 | R95: 17 | T95: 12.26666667 | U95: 9.118333333 | X95: 0.46 | Y95: 1.3 | Z95: 9.6 | AA95: 0.95 | AE95: 1.37 | AF95: 6.15 | AG95: 32.08 | AH95: 27.3 | AI95: 5.9 | AJ95: 12.42 | AL95: 2.5 | AM95: 1.9 | AN95: 4.1 | AO95: 4.3 | AP95: 17 | AX95: 2.4 | AY95: 19.1 | AZ95: 15.3
A96: 2015-01-04 | B96: Jan 04 | C96: 2015-01-04 | D96: 01-Jan 04 | E96: 1 | F96: 4 | G96: 2015 | H96: 12:00:00 | I96: 0.36 | J96: 5.3 | K96: 0.98 | M96: 17.43333333 | N96: 15.2 | O96: 9.8 | P96: 10.9 | Q96: 3.325 | R96: 15 | T96: 14.26666667 | U96: 9.513333333 | X96: 0.36 | Y96: 3.4 | Z96: 7.2 | AA96: 0.98 | AE96: 2.28 | AF96: 11.3 | AG96: 38.72 | AH96: 15.2 | AI96: 9.8 | AJ96: 10.9 | AL96: 1.9 | AM96: 1.6 | AN96: 5.3 | AO96: 4.5 | AP96: 15 | AX96: 2.5 | AY96: 22.6 | AZ96: 17.7
A97: 2015-01-04 | B97: Jan 04 | C97: 2015-01-04 | D97: 01-Jan 04 | E97: 1 | F97: 4 | G97: 2015 | H97: 13:00:00 | I97: 0.46 | J97: 7.45 | K97: 0.98 | M97: 18.95666667 | N97: 22.4 | O97: 8.9 | P97: 13.76 | Q97: 4.2 | R97: 19 | T97: 17.56666667 | U97: 11.48722222 | X97: 0.46 | Y97: 7.6 | Z97: 7.3 | AA97: 0.98 | AE97: 2.97 | AF97: 12.14 | AG97: 41.76 | AH97: 22.4 | AI97: 8.9 | AJ97: 13.76 | AL97: 2.6 | AM97: 1.6 | AN97: 7.5 | AO97: 5.1 | AP97: 19 | AX97: 3.2 | AY97: 27.9 | AZ97: 21.6
A98: 2015-01-04 | B98: Jan 04 | C98: 2015-01-04 | D98: 01-Jan 04 | E98: 1 | F98: 4 | G98: 2015 | H98: 14:00:00 | I98: 0.72 | J98: 9.2 | K98: 1.05 | M98: 23.60333333 | N98: 16 | O98: 8.4 | P98: 21.65 | Q98: 4.95 | R98: 18 | T98: 22.13333333 | U98: 13.40166667 | X98: 0.72 | Y98: 8.5 | Z98: 9.9 | AA98: 1.05 | AE98: 3.66 | AF98: 11.82 | AG98: 55.33 | AH98: 16 | AI98: 8.4 | AJ98: 21.65 | AL98: 1 | AM98: 1.6 | AN98: 10.5 | AO98: 6.7 | AP98: 18 | AX98: 3.7 | AY98: 33.7 | AZ98: 29
A99: 2015-01-04 | B99: Jan 04 | C99: 2015-01-04 | D99: 01-Jan 04 | E99: 1 | F99: 4 | G99: 2015 | H99: 15:00:00 | I99: 1.13 | J99: 10 | K99: 1.08 | M99: 22.17333333 | N99: 9.9 | O99: 10.1 | P99: 18.1 | Q99: 4.125 | R99: 21 | T99: 27.73333333 | U99: 13.75166667 | X99: 1.13 | Y99: 9.8 | Z99: 10.2 | AA99: 1.08 | AE99: 3.47 | AF99: 11.63 | AG99: 51.42 | AH99: 9.9 | AI99: 10.1 | AJ99: 18.1 | AL99: 1.3 | AM99: 1.8 | AN99: 6.8 | AO99: 6.6 | AP99: 21 | AX99: 3.3 | AY99: 54.3 | AZ99: 25.6
A100: 2015-01-04 | B100: Jan 04 | C100: 2015-01-04 | D100: 01-Jan 04 | E100: 1 | F100: 4 | G100: 2015 | H100: 16:00:00 | I100: 0.86 | J100: 11.15 | K100: 1.24 | M100: 28.91666667 | N100: 8.4 | O100: 34.2 | P100: 10.7 | Q100: 4.125 | R100: 27 | T100: 26.26666667 | U100: 15.93055556 | X100: 0.86 | Y100: 10.8 | Z100: 11.5 | AA100: 1.24 | AE100: 7.27 | AF100: 12.75 | AG100: 66.73 | AH100: 8.4 | AI100: 34.2 | AJ100: 10.7 | AL100: 3.2 | AM100: 1.8 | AN100: 7.2 | AO100: 4.3 | AP100: 27 | AX100: 3.5 | AY100: 49.5 | AZ100: 25.8
A101: 2015-01-04 | B101: Jan 04 | C101: 2015-01-04 | D101: 01-Jan 04 | E101: 1 | F101: 4 | G101: 2015 | H101: 17:00:00 | I101: 1.4 | J101: 11.55 | K101: 1.39 | M101: 25.26666667 | N101: 8.3 | O101: 31.7 | P101: 10.93 | Q101: 3.4 | R101: 27 | T101: 26.13333333 | U101: 15.09 | X101: 1.4 | Y101: 10.4 | Z101: 12.7 | AA101: 1.39 | AE101: 7.29 | AF101: 13.08 | AG101: 55.43 | AH101: 8.3 | AI101: 31.7 | AJ101: 10.93 | AL101: 2.1 | AM101: 2 | AN101: 5.9 | AO101: 3.6 | AP101: 27 | AX101: 3.4 | AY101: 45.1 | AZ101: 29.9
A102: 2015-01-04 | B102: Jan 04 | C102: 2015-01-04 | D102: 01-Jan 04 | E102: 1 | F102: 4 | G102: 2015 | H102: 18:00:00 | I102: 1.8 | J102: 11.95 | K102: 1.48 | M102: 24.68666667 | N102: 8.2 | O102: 25.5 | P102: 10.66 | Q102: 3.25 | R102: 25 | T102: 26.6 | U102: 14.63333333 | X102: 1.8 | Y102: 10.3 | Z102: 13.6 | AA102: 1.48 | AE102: 6.12 | AF102: 11.05 | AG102: 56.89 | AH102: 8.2 | AI102: 25.5 | AJ102: 10.66 | AL102: 1.4 | AM102: 2.1 | AN102: 6 | AO102: 3.5 | AP102: 25 | AX102: 4.1 | AY102: 38.4 | AZ102: 37.3
A103: 2015-01-04 | B103: Jan 04 | C103: 2015-01-04 | D103: 01-Jan 04 | E103: 1 | F103: 4 | G103: 2015 | H103: 19:00:00 | I103: 1.78 | J103: 12.1 | K103: 1.62 | M103: 17.92333333 | N103: 7.3 | O103: 21.1 | P103: 4.84 | Q103: 2.575 | R103: 14 | T103: 22.46666667 | U103: 11.46166667 | X103: 1.78 | Y103: 10.2 | Z103: 14 | AA103: 1.62 | AE103: 6.44 | AF103: 11.91 | AG103: 35.42 | AH103: 7.3 | AI103: 21.1 | AJ103: 4.84 | AL103: 2 | AM103: 2.3 | AN103: 2.2 | AO103: 3.8 | AP103: 14 | AX103: 4.8 | AY103: 30.5 | AZ103: 32.1
A104: 2015-01-04 | B104: Jan 04 | C104: 2015-01-04 | D104: 01-Jan 04 | E104: 1 | F104: 4 | G104: 2015 | H104: 20:00:00 | I104: 2.57 | J104: 10.8 | K104: 1.8 | M104: 14.65 | N104: 10.5 | O104: 10.7 | P104: 4.2 | Q104: 1.925 | R104: 14 | T104: 10.5 | U104: 8.251111111 | X104: 2.57 | Y104: 8.8 | Z104: 12.8 | AA104: 1.8 | AE104: 6.12 | AF104: 11.79 | AG104: 26.04 | AH104: 10.5 | AI104: 10.7 | AJ104: 4.2 | AL104: 1.1 | AM104: 1.8 | AN104: 1.9 | AO104: 2.9 | AP104: 14 | AX104: 4.7 | AY104: 16.2 | AZ104: 10.6
A105: 2015-01-04 | B105: Jan 04 | C105: 2015-01-04 | D105: 01-Jan 04 | E105: 1 | F105: 4 | G105: 2015 | H105: 21:00:00 | I105: 3.8 | J105: 8.4 | K105: 2 | M105: 14.04 | N105: 9 | O105: 8.5 | P105: 4.15 | Q105: 1.975 | R105: 8 | T105: 8.733333333 | U105: 7.137222222 | X105: 3.8 | Y105: 6.3 | Z105: 10.5 | AA105: 2 | AE105: 6.59 | AF105: 12.61 | AG105: 22.92 | AH105: 9 | AI105: 8.5 | AJ105: 4.15 | AL105: 1.4 | AM105: 2.3 | AN105: 1.5 | AO105: 2.7 | AP105: 8 | AX105: 4 | AY105: 11.7 | AZ105: 10.5
A106: 2015-01-04 | B106: Jan 04 | C106: 2015-01-04 | D106: 01-Jan 04 | E106: 1 | F106: 4 | G106: 2015 | H106: 22:00:00 | I106: 3.67 | J106: 7.55 | K106: 2.21 | M106: 14.56333333 | N106: 6.5 | O106: 5.1 | P106: 4.21 | Q106: 2.2 | R106: 6 | T106: 9.4 | U106: 6.86 | X106: 3.67 | Y106: 5.7 | Z106: 9.4 | AA106: 2.21 | AE106: 6.2 | AF106: 20.16 | AG106: 17.33 | AH106: 6.5 | AI106: 5.1 | AJ106: 4.21 | AL106: 2 | AM106: 2.6 | AN106: 1.6 | AO106: 2.6 | AP106: 6 | AX106: 5.1 | AY106: 12.3 | AZ106: 10.8
A107: 2015-01-04 | B107: Jan 04 | C107: 2015-01-04 | D107: 01-Jan 04 | E107: 1 | F107: 4 | G107: 2015 | H107: 23:00:00 | I107: 3.59 | J107: 5.65 | K107: 2.74 | M107: 9.073333333 | N107: 4.1 | O107: 3.3 | P107: 4.02 | Q107: 2.3 | R107: 5 | T107: 7.933333333 | U107: 5.237222222 | X107: 3.59 | Y107: 3.2 | Z107: 8.1 | AA107: 2.74 | AE107: 6.02 | AF107: 5.68 | AG107: 15.52 | AH107: 4.1 | AI107: 3.3 | AJ107: 4.02 | AL107: 2.5 | AM107: 3 | AN107: 1.3 | AO107: 2.4 | AP107: 5 | AX107: 4.2 | AY107: 10 | AZ107: 9.6
A108: 2015-01-05 | B108: Jan 05 | C108: 2015-01-05 | D108: 01-Jan 05 | E108: 1 | F108: 5 | G108: 2015 | H108: 00:00:00 | I108: 5.46 | J108: 3.55 | K108: 2.47 | M108: 6.63 | N108: 4.5 | O108: 3 | P108: 3.85 | Q108: 1.85 | R108: 4 | T108: 6.033333333 | U108: 4.209444444 | X108: 5.46 | Y108: 2.8 | Z108: 4.3 | AA108: 2.47 | AE108: 4.6 | AF108: 3.71 | AG108: 11.58 | AH108: 4.5 | AI108: 3 | AJ108: 3.85 | AL108: 1.7 | AM108: 2.7 | AN108: 1.1 | AO108: 1.9 | AP108: 4 | AX108: 3.5 | AY108: 7.9 | AZ108: 6.7
A109: 2015-01-05 | B109: Jan 05 | C109: 2015-01-05 | D109: 01-Jan 05 | E109: 1 | F109: 5 | G109: 2015 | H109: 01:00:00 | I109: 6.24 | J109: 3.15 | M109: 6.063333333 | N109: 3.7 | O109: 2.9 | P109: 3.74 | Q109: 2.05 | R109: 5 | T109: 7.55 | U109: 4.335625 | X109: 6.24 | Y109: 2.9 | Z109: 3.4 | AE109: 2.92 | AF109: 5.8 | AG109: 9.47 | AH109: 3.7 | AI109: 2.9 | AJ109: 3.74 | AL109: 1.6 | AM109: 2.6 | AN109: 1.6 | AO109: 2.4 | AP109: 5 | AY109: 7.6 | AZ109: 7.5
A110: 2015-01-05 | B110: Jan 05 | C110: 2015-01-05 | D110: 01-Jan 05 | E110: 1 | F110: 5 | G110: 2015 | H110: 02:00:00 | I110: 5.49 | J110: 3.3 | K110: 0.81 | M110: 5.086666667 | N110: 4.1 | O110: 3.4 | P110: 3.65 | Q110: 2.375 | R110: 6 | T110: 6 | U110: 4.045 | X110: 5.49 | Y110: 3 | Z110: 3.6 | AA110: 0.81 | AE110: 3.43 | AF110: 4.42 | AG110: 7.41 | AH110: 4.1 | AI110: 3.4 | AJ110: 3.65 | AL110: 2.8 | AM110: 2.6 | AN110: 1.7 | AO110: 2.4 | AP110: 6 | AX110: 3.5 | AY110: 7.2 | AZ110: 7.3
A111: 2015-01-05 | B111: Jan 05 | C111: 2015-01-05 | D111: 01-Jan 05 | E111: 1 | F111: 5 | G111: 2015 | H111: 03:00:00 | I111: 3.63 | J111: 2.9 | K111: 0.91 | M111: 5.233333333 | N111: 4.3 | O111: 4.2 | P111: 3.68 | Q111: 1.8 | R111: 7 | T111: 9.9 | U111: 4.724705882 | X111: 3.63 | Y111: 2.9 | Z111: 2.9 | AA111: 0.91 | AE111: 3.2 | AF111: 3.13 | AG111: 9.37 | AH111: 4.3 | AI111: 4.2 | AJ111: 3.68 | AM111: 1.8 | AN111: 1.1 | AO111: 2.5 | AP111: 7 | AX111: 2.6 | AY111: 8.9 | AZ111: 18.2
A112: 2015-01-05 | B112: Jan 05 | C112: 2015-01-05 | D112: 01-Jan 05 | E112: 1 | F112: 5 | G112: 2015 | H112: 04:00:00 | I112: 2.13 | J112: 2.35 | K112: 0.87 | M112: 9.856666667 | N112: 3.6 | O112: 5.4 | P112: 3.77 | Q112: 2.025 | R112: 8 | T112: 11.86666667 | U112: 5.652222222 | X112: 2.13 | Y112: 2.5 | Z112: 2.2 | AA112: 0.87 | AE112: 18.26 | AF112: 2.3 | AG112: 9.01 | AH112: 3.6 | AI112: 5.4 | AJ112: 3.77 | AL112: 2.1 | AM112: 2.6 | AN112: 1.3 | AO112: 2.1 | AP112: 8 | AX112: 3.2 | AY112: 9.8 | AZ112: 22.6
A113: 2015-01-05 | B113: Jan 05 | C113: 2015-01-05 | D113: 01-Jan 05 | E113: 1 | F113: 5 | G113: 2015 | H113: 05:00:00 | I113: 1.62 | J113: 1.9 | K113: 0.85 | M113: 8.216666667 | N113: 5.7 | O113: 8.1 | P113: 3.92 | Q113: 2.45 | R113: 9 | T113: 14.36666667 | U113: 6.141111111 | X113: 1.62 | Y113: 2.1 | Z113: 1.7 | AA113: 0.85 | AE113: 10.23 | AF113: 1.13 | AG113: 13.29 | AH113: 5.7 | AI113: 8.1 | AJ113: 3.92 | AL113: 1.8 | AM113: 2.5 | AN113: 2.6 | AO113: 2.9 | AP113: 9 | AX113: 6.3 | AY113: 11.4 | AZ113: 25.4
A114: 2015-01-05 | B114: Jan 05 | C114: 2015-01-05 | D114: 01-Jan 05 | E114: 1 | F114: 5 | G114: 2015 | H114: 06:00:00 | I114: 1.22 | J114: 1.65 | K114: 0.82 | M114: 8.816666667 | N114: 5.3 | O114: 11.8 | P114: 4.58 | Q114: 3 | R114: 8 | T114: 14.53333333 | U114: 6.503888889 | X114: 1.22 | Y114: 1.9 | Z114: 1.4 | AA114: 0.82 | AE114: 4.53 | AF114: 0.97 | AG114: 20.95 | AH114: 5.3 | AI114: 11.8 | AJ114: 4.58 | AL114: 2 | AM114: 2.5 | AN114: 3.9 | AO114: 3.6 | AP114: 8 | AX114: 6.9 | AY114: 13.6 | AZ114: 23.1
A115: 2015-01-05 | B115: Jan 05 | C115: 2015-01-05 | D115: 01-Jan 05 | E115: 1 | F115: 5 | G115: 2015 | H115: 07:00:00 | I115: 0.97 | J115: 1.6 | K115: 0.79 | M115: 10.05 | N115: 4.9 | O115: 29.1 | P115: 8.18 | Q115: 3.15 | R115: 13 | T115: 14.56666667 | U115: 8.143888889 | X115: 0.97 | Y115: 1.7 | Z115: 1.5 | AA115: 0.79 | AE115: 2.81 | AF115: 0.99 | AG115: 26.35 | AH115: 4.9 | AI115: 29.1 | AJ115: 8.18 | AL115: 2.2 | AM115: 2.4 | AN115: 4.4 | AO115: 3.6 | AP115: 13 | AX115: 6.2 | AY115: 16.6 | AZ115: 20.9
A116: 2015-01-05 | B116: Jan 05 | C116: 2015-01-05 | D116: 01-Jan 05 | E116: 1 | F116: 5 | G116: 2015 | H116: 08:00:00 | I116: 0.66 | J116: 1.4 | K116: 0.75 | M116: 8.873333333 | N116: 3.5 | O116: 32.5 | P116: 8.59 | Q116: 3.875 | R116: 11 | T116: 17.06666667 | U116: 8.506666667 | X116: 0.66 | Y116: 1.5 | Z116: 1.3 | AA116: 0.75 | AE116: 2.18 | AF116: 0.9 | AG116: 23.54 | AH116: 3.5 | AI116: 32.5 | AJ116: 8.59 | AL116: 2.7 | AM116: 2.3 | AN116: 5.8 | AO116: 4.7 | AP116: 11 | AX116: 7.7 | AY116: 17.3 | AZ116: 26.2
A117: 2015-01-05 | B117: Jan 05 | C117: 2015-01-05 | D117: 01-Jan 05 | E117: 1 | F117: 5 | G117: 2015 | H117: 09:00:00 | I117: 0.62 | J117: 1.2 | K117: 0.73 | M117: 10.63 | N117: 3.4 | O117: 23.6 | Q117: 3.175 | R117: 8 | T117: 13.1 | U117: 7.000625 | X117: 0.62 | Y117: 1.3 | Z117: 1.1 | AA117: 0.73 | AF117: 0.88 | AG117: 20.38 | AH117: 3.4 | AI117: 23.6 | AL117: 2.9 | AM117: 2.2 | AN117: 3.8 | AO117: 3.8 | AP117: 8 | AX117: 9.1 | AY117: 12.2 | AZ117: 18
A118: 2015-01-05 | B118: Jan 05 | C118: 2015-01-05 | D118: 01-Jan 05 | E118: 1 | F118: 5 | G118: 2015 | H118: 10:00:00 | J118: 1.15 | K118: 0.7 | M118: 7.25 | N118: 2.8 | O118: 11.6 | Q118: 2.925 | R118: 7 | T118: 12.83333333 | U118: 6.021875 | Y118: 1.2 | Z118: 1.1 | AA118: 0.7 | AE118: 2.27 | AF118: 0.67 | AG118: 18.81 | AH118: 2.8 | AI118: 11.6 | AL118: 2.4 | AM118: 2.3 | AN118: 4 | AO118: 3 | AP118: 7 | AX118: 8 | AY118: 13.9 | AZ118: 16.6
A119: 2015-01-05 | B119: Jan 05 | C119: 2015-01-05 | D119: 01-Jan 05 | E119: 1 | F119: 5 | G119: 2015 | H119: 11:00:00 | J119: 1.1 | K119: 0.72 | M119: 6.32 | N119: 2.7 | O119: 10.4 | Q119: 2.7 | R119: 7 | T119: 12.6 | U119: 5.66125 | Y119: 1.1 | Z119: 1.1 | AA119: 0.72 | AE119: 1.38 | AF119: 0.9 | AG119: 16.68 | AH119: 2.7 | AI119: 10.4 | AL119: 2 | AM119: 2.4 | AN119: 3.2 | AO119: 3.2 | AP119: 7 | AX119: 7.2 | AY119: 13.3 | AZ119: 17.3
A120: 2015-01-05 | B120: Jan 05 | C120: 2015-01-05 | D120: 01-Jan 05 | E120: 1 | F120: 5 | G120: 2015 | H120: 12:00:00 | J120: 1.1 | K120: 0.69 | M120: 7.506666667 | N120: 2 | O120: 9.7 | Q120: 2.575 | R120: 7 | T120: 11.96666667 | U120: 5.644375 | Y120: 1.1 | Z120: 1.1 | AA120: 0.69 | AE120: 1.6 | AF120: 0.9 | AG120: 20.02 | AH120: 2 | AI120: 9.7 | AL120: 2.1 | AM120: 2.6 | AN120: 2.9 | AO120: 2.7 | AP120: 7 | AX120: 7.8 | AY120: 13 | AZ120: 15.1
A121: 2015-01-05 | B121: Jan 05 | C121: 2015-01-05 | D121: 01-Jan 05 | E121: 1 | F121: 5 | G121: 2015 | H121: 13:00:00 | J121: 1.05 | K121: 0.68 | M121: 7.826666667 | N121: 2.2 | O121: 10.4 | Q121: 2.275 | R121: 9 | T121: 11.7 | U121: 5.75375 | Y121: 1 | Z121: 1.1 | AA121: 0.68 | AE121: 1.55 | AF121: 0.89 | AG121: 21.04 | AH121: 2.2 | AI121: 10.4 | AL121: 1.5 | AM121: 2.8 | AN121: 2.4 | AO121: 2.4 | AP121: 9 | AX121: 7.8 | AY121: 13 | AZ121: 14.3
A122: 2015-01-05 | B122: Jan 05 | C122: 2015-01-05 | D122: 01-Jan 05 | E122: 1 | F122: 5 | G122: 2015 | H122: 14:00:00 | J122: 1.05 | K122: 0.67 | M122: 9.153333333 | N122: 2.2 | O122: 10.8 | P122: 5.27 | Q122: 2.475 | R122: 10 | T122: 12.8 | U122: 6.282352941 | Y122: 0.9 | Z122: 1.2 | AA122: 0.67 | AE122: 1.42 | AF122: 0.95 | AG122: 25.09 | AH122: 2.2 | AI122: 10.8 | AJ122: 5.27 | AL122: 1.5 | AM122: 3.1 | AN122: 2.8 | AO122: 2.5 | AP122: 10 | AX122: 7.2 | AY122: 14.3 | AZ122: 16.9
A123: 2015-01-05 | B123: Jan 05 | C123: 2015-01-05 | D123: 01-Jan 05 | E123: 1 | F123: 5 | G123: 2015 | H123: 15:00:00 | I123: 0.51 | J123: 1.05 | K123: 0.66 | M123: 10.75 | N123: 2.9 | O123: 12.4 | P123: 6.29 | Q123: 2.65 | R123: 11 | T123: 14.73333333 | U123: 6.828333333 | X123: 0.51 | Y123: 0.9 | Z123: 1.2 | AA123: 0.66 | AE123: 1.52 | AF123: 1.35 | AG123: 29.38 | AH123: 2.9 | AI123: 12.4 | AJ123: 6.29 | AL123: 1.7 | AM123: 3.4 | AN123: 2.9 | AO123: 2.6 | AP123: 11 | AX123: 9.1 | AY123: 18.4 | AZ123: 16.7
A124: 2015-01-05 | B124: Jan 05 | C124: 2015-01-05 | D124: 01-Jan 05 | E124: 1 | F124: 5 | G124: 2015 | H124: 16:00:00 | I124: 0.45 | J124: 1.05 | K124: 0.6 | M124: 8.843333333 | N124: 3.1 | O124: 13.4 | P124: 6.66 | Q124: 3.35 | R124: 11 | T124: 17.3 | U124: 7.174444444 | X124: 0.45 | Y124: 0.9 | Z124: 1.2 | AA124: 0.6 | AE124: 1.28 | AF124: 1.15 | AG124: 24.1 | AH124: 3.1 | AI124: 13.4 | AJ124: 6.66 | AL124: 2.2 | AM124: 3.6 | AN124: 4.1 | AO124: 3.5 | AP124: 11 | AX124: 8.8 | AY124: 22.9 | AZ124: 20.2
A125: 2015-01-05 | B125: Jan 05 | C125: 2015-01-05 | D125: 01-Jan 05 | E125: 1 | F125: 5 | G125: 2015 | H125: 17:00:00 | I125: 0.37 | J125: 1.15 | K125: 0.58 | M125: 11.44666667 | N125: 3.4 | O125: 14.5 | P125: 8.44 | Q125: 3.95 | R125: 10 | T125: 18.96666667 | U125: 8.146111111 | X125: 0.37 | Y125: 1 | Z125: 1.3 | AA125: 0.58 | AE125: 1.43 | AF125: 1.21 | AG125: 31.7 | AH125: 3.4 | AI125: 14.5 | AJ125: 8.44 | AL125: 1.9 | AM125: 4.1 | AN125: 5.3 | AO125: 4.5 | AP125: 10 | AX125: 9.2 | AY125: 24.6 | AZ125: 23.1
A126: 2015-01-05 | B126: Jan 05 | C126: 2015-01-05 | D126: 01-Jan 05 | E126: 1 | F126: 5 | G126: 2015 | H126: 18:00:00 | I126: 0.4 | J126: 1.15 | K126: 0.56 | M126: 14.845 | N126: 3.3 | O126: 15.6 | P126: 8.13 | Q126: 4.225 | R126: 13 | T126: 18.73333333 | U126: 8.592941176 | X126: 0.4 | Y126: 1 | Z126: 1.3 | AA126: 0.56 | AF126: 1.21 | AG126: 28.48 | AH126: 3.3 | AI126: 15.6 | AJ126: 8.13 | AL126: 2.1 | AM126: 4.1 | AN126: 5.9 | AO126: 4.8 | AP126: 13 | AX126: 9.1 | AY126: 24.2 | AZ126: 22.9
A127: 2015-01-05 | B127: Jan 05 | C127: 2015-01-05 | D127: 01-Jan 05 | E127: 1 | F127: 5 | G127: 2015 | H127: 19:00:00 | I127: 0.34 | J127: 1.25 | K127: 0.57 | M127: 9.833333333 | N127: 3 | O127: 13.9 | P127: 8.26 | Q127: 3.65 | R127: 11 | T127: 14.5 | U127: 7.065 | X127: 0.34 | Y127: 1.1 | Z127: 1.4 | AA127: 0.57 | AE127: 1.65 | AF127: 1.25 | AG127: 26.6 | AH127: 3 | AI127: 13.9 | AJ127: 8.26 | AL127: 2.2 | AM127: 3.7 | AN127: 4.5 | AO127: 4.2 | AP127: 11 | AX127: 7.9 | AY127: 16.7 | AZ127: 18.9
A128: 2015-01-05 | B128: Jan 05 | C128: 2015-01-05 | D128: 01-Jan 05 | E128: 1 | F128: 5 | G128: 2015 | H128: 20:00:00 | I128: 0.39 | J128: 1.2 | K128: 0.59 | M128: 12.92 | N128: 3 | O128: 11.1 | P128: 8.18 | Q128: 3.725 | R128: 12 | T128: 14.06666667 | U128: 7.094117647 | X128: 0.39 | Y128: 1.1 | Z128: 1.3 | AA128: 0.59 | AE128: 1.23 | AG128: 24.61 | AH128: 3 | AI128: 11.1 | AJ128: 8.18 | AL128: 2.9 | AM128: 3.6 | AN128: 3.9 | AO128: 4.5 | AP128: 12 | AX128: 9.2 | AY128: 16.3 | AZ128: 16.7
A129: 2015-01-05 | B129: Jan 05 | C129: 2015-01-05 | D129: 01-Jan 05 | E129: 1 | F129: 5 | G129: 2015 | H129: 21:00:00 | I129: 0.43 | J129: 1 | K129: 0.57 | M129: 11.785 | N129: 3.2 | O129: 10.6 | P129: 8.98 | Q129: 4 | R129: 10 | T129: 13.6 | U129: 6.832352941 | X129: 0.43 | Y129: 1.1 | Z129: 0.9 | AA129: 0.57 | AE129: 0.9 | AG129: 22.67 | AH129: 3.2 | AI129: 10.6 | AJ129: 8.98 | AL129: 3.1 | AM129: 3.4 | AN129: 4.9 | AO129: 4.6 | AP129: 10 | AX129: 10.2 | AY129: 16.1 | AZ129: 14.5
A130: 2015-01-05 | B130: Jan 05 | C130: 2015-01-05 | D130: 01-Jan 05 | E130: 1 | F130: 5 | G130: 2015 | H130: 22:00:00 | I130: 0.52 | J130: 0.9 | K130: 0.58 | M130: 0.915 | N130: 3.3 | O130: 8.9 | P130: 9.26 | Q130: 3.575 | R130: 11 | T130: 13.36666667 | U130: 5.387647059 | X130: 0.52 | Y130: 1 | Z130: 0.8 | AA130: 0.58 | AE130: 0.89 | AF130: 0.94 | AH130: 3.3 | AI130: 8.9 | AJ130: 9.26 | AL130: 2.9 | AM130: 3.3 | AN130: 3.9 | AO130: 4.2 | AP130: 11 | AX130: 11.3 | AY130: 15.6 | AZ130: 13.2
A131: 2015-01-05 | B131: Jan 05 | C131: 2015-01-05 | D131: 01-Jan 05 | E131: 1 | F131: 5 | G131: 2015 | H131: 23:00:00 | I131: 0.78 | J131: 0.9 | K131: 0.55 | M131: 0.89 | N131: 3.5 | O131: 9 | P131: 12.01 | Q131: 4 | R131: 10 | T131: 12.66666667 | U131: 5.495294118 | X131: 0.78 | Y131: 0.9 | Z131: 0.9 | AA131: 0.55 | AE131: 1.03 | AF131: 0.75 | AH131: 3.5 | AI131: 9 | AJ131: 12.01 | AL131: 3 | AM131: 3.4 | AN131: 5.1 | AO131: 4.5 | AP131: 10 | AX131: 10.4 | AY131: 15.3 | AZ131: 12.3
A132: 2015-01-06 | B132: Jan 06 | C132: 2015-01-06 | D132: 01-Jan 06 | E132: 1 | F132: 6 | G132: 2015 | H132: 00:00:00 | I132: 0.75 | J132: 0.95 | K132: 0.52 | M132: 6.086666667 | N132: 4.3 | O132: 8.4 | P132: 12.61 | Q132: 4.25 | R132: 11 | T132: 13.06666667 | U132: 6.33 | X132: 0.75 | Y132: 0.9 | Z132: 1 | AA132: 0.52 | AE132: 1.39 | AF132: 0.87 | AG132: 16 | AH132: 4.3 | AI132: 8.4 | AJ132: 12.61 | AL132: 2.8 | AM132: 3.6 | AN132: 5.5 | AO132: 5.1 | AP132: 11 | AX132: 11.4 | AY132: 15.6 | AZ132: 12.2
A133: 2015-01-06 | B133: Jan 06 | C133: 2015-01-06 | D133: 01-Jan 06 | E133: 1 | F133: 6 | G133: 2015 | H133: 01:00:00 | I133: 0.86 | J133: 0.9 | M133: 4.686666667 | N133: 4.7 | O133: 7.7 | P133: 10.59 | Q133: 4.225 | R133: 12 | T133: 13.35 | U133: 5.956875 | X133: 0.86 | Y133: 0.8 | Z133: 1 | AE133: 2.48 | AF133: 1.37 | AG133: 10.21 | AH133: 4.7 | AI133: 7.7 | AJ133: 10.59 | AL133: 3 | AM133: 4.1 | AN133: 4.9 | AO133: 4.9 | AP133: 12 | AY133: 14.8 | AZ133: 11.9
A134: 2015-01-06 | B134: Jan 06 | C134: 2015-01-06 | D134: 01-Jan 06 | E134: 1 | F134: 6 | G134: 2015 | H134: 02:00:00 | I134: 0.74 | J134: 0.95 | K134: 0.43 | M134: 3.98 | N134: 4.3 | O134: 8.3 | P134: 12.59 | Q134: 5.25 | R134: 13 | T134: 13.36666667 | U134: 6.35 | X134: 0.74 | Y134: 0.8 | Z134: 1.1 | AA134: 0.43 | AE134: 2.18 | AF134: 1.85 | AG134: 7.91 | AH134: 4.3 | AI134: 8.3 | AJ134: 12.59 | AL134: 4.3 | AM134: 5.4 | AN134: 5.5 | AO134: 5.8 | AP134: 13 | AX134: 11.5 | AY134: 15.5 | AZ134: 13.1
A135: 2015-01-06 | B135: Jan 06 | C135: 2015-01-06 | D135: 01-Jan 06 | E135: 1 | F135: 6 | G135: 2015 | H135: 03:00:00 | I135: 0.67 | J135: 1 | K135: 0.6 | M135: 4.623333333 | N135: 6.3 | O135: 12.7 | P135: 15.4 | Q135: 5.275 | R135: 10 | T135: 13.8 | U135: 6.891111111 | X135: 0.67 | Y135: 0.8 | Z135: 1.2 | AA135: 0.6 | AE135: 2.2 | AF135: 2.02 | AG135: 9.65 | AH135: 6.3 | AI135: 12.7 | AJ135: 15.4 | AL135: 4 | AM135: 4.6 | AN135: 6.3 | AO135: 6.2 | AP135: 10 | AX135: 11.7 | AY135: 15.1 | AZ135: 14.6
A136: 2015-01-06 | B136: Jan 06 | C136: 2015-01-06 | D136: 01-Jan 06 | E136: 1 | F136: 6 | G136: 2015 | H136: 04:00:00 | I136: 0.85 | J136: 1.55 | K136: 0.63 | M136: 7.23 | N136: 5.5 | O136: 14.1 | P136: 10.62 | Q136: 4.725 | R136: 10 | T136: 22.16666667 | U136: 8.438333333 | X136: 0.85 | Y136: 0.8 | Z136: 2.3 | AA136: 0.63 | AE136: 7 | AF136: 2.45 | AG136: 12.24 | AH136: 5.5 | AI136: 14.1 | AJ136: 10.62 | AL136: 3.4 | AM136: 4.1 | AN136: 5 | AO136: 6.4 | AP136: 10 | AX136: 18.6 | AY136: 18.6 | AZ136: 29.3
A137: 2015-01-06 | B137: Jan 06 | C137: 2015-01-06 | D137: 01-Jan 06 | E137: 1 | F137: 6 | G137: 2015 | H137: 05:00:00 | I137: 0.85 | J137: 1.95 | K137: 0.69 | M137: 9.98 | N137: 6 | O137: 14.2 | P137: 16.27 | Q137: 4.85 | R137: 11 | T137: 28 | U137: 10.34722222 | X137: 0.85 | Y137: 0.9 | Z137: 3 | AA137: 0.69 | AE137: 4.46 | AF137: 2.26 | AG137: 23.22 | AH137: 6 | AI137: 14.2 | AJ137: 16.27 | AL137: 2.7 | AM137: 3.7 | AN137: 6.8 | AO137: 6.2 | AP137: 11 | AX137: 22.2 | AY137: 23.1 | AZ137: 38.7
A138: 2015-01-06 | B138: Jan 06 | C138: 2015-01-06 | D138: 01-Jan 06 | E138: 1 | F138: 6 | G138: 2015 | H138: 06:00:00 | I138: 1.3 | K138: 0.72 | M138: 14.38333333 | N138: 6.7 | O138: 22.3 | P138: 24.61 | Q138: 4.675 | R138: 13 | T138: 28.43333333 | U138: 13.48625 | X138: 1.3 | AA138: 0.72 | AE138: 4.16 | AF138: 2.74 | AG138: 36.25 | AH138: 6.7 | AI138: 22.3 | AJ138: 24.61 | AL138: 2.6 | AM138: 3.5 | AN138: 6.1 | AO138: 6.5 | AP138: 13 | AX138: 26.4 | AY138: 23.6 | AZ138: 35.3
A139: 2015-01-06 | B139: Jan 06 | C139: 2015-01-06 | D139: 01-Jan 06 | E139: 1 | F139: 6 | G139: 2015 | H139: 07:00:00 | I139: 1.74 | J139: 3.05 | K139: 0.79 | M139: 15.24666667 | N139: 6.8 | O139: 15.6 | P139: 28.27 | Q139: 3.9 | R139: 18 | T139: 30.96666667 | U139: 13.39058824 | X139: 1.74 | Y139: 1.2 | Z139: 4.9 | AA139: 0.79 | AE139: 4.38 | AF139: 3.31 | AG139: 38.05 | AH139: 6.8 | AI139: 15.6 | AJ139: 28.27 | AL139: 2.8 | AM139: 3.5 | AN139: 5.4 | AP139: 18 | AX139: 25.4 | AY139: 21.7 | AZ139: 45.8
A140: 2015-01-06 | B140: Jan 06 | C140: 2015-01-06 | D140: 01-Jan 06 | E140: 1 | F140: 6 | G140: 2015 | H140: 08:00:00 | I140: =IF(COUNT(V140:X140)=0,"",AVERAGE(V140:X140)) -> 1.25 | J140: 3.9 | K140: 1.15 | M140: 15.50333333 | N140: 7.3 | O140: 26.4 | P140: 32.16 | Q140: =IF(COUNT(AK140:AO140)=0,"",AVERAGE(AK140:AO140)) -> 5.975 | R140: =IF(COUNT(AP140:AQ140)=0,"",AVERAGE(AP140:AQ140)) -> 24 | S140: =IF(COUNT(AR140:AW140)=0,"",AVERAGE(AR140:AW140)) ->  | T140: =IF(COUNT(AX140:AZ140)=0,"",AVERAGE(AX140:AZ140)) -> 34.2 | U140: =IF(COUNT(V140:AZ140)=0,"",AVERAGE(V140:AZ140)) -> 15.17055556 | X140: 1.25 | Y140: 1.4 | Z140: 6.4 | AA140: 1.15 | AE140: 3.1 | AF140: 5.83 | AG140: 37.58 | AH140: 7.3 | AI140: 26.4 | AJ140: 32.16 | AL140: 3.5 | AM140: 3.4 | AN140: 7.1 | AO140: 9.9 | AP140: 24 | AX140: 30.1 | AY140: 28.9 | AZ140: 43.6
A141: 2015-01-06 | B141: Jan 06 | C141: =DATE(G141,E141,F141) -> 2015-01-06 | D141: =TEXT(E141,"00")&"-"&TEXT(C141,"MMM")&" "&TEXT(F141,"00") -> 01-Jan 06 | E141: 1 | F141: 6 | G141: 2015 | H141: 09:00:00 | I141: 1.13 | J141: =IF(COUNT(Y141:Z141)=0,"",AVERAGE(Y141:Z141)) -> 3.15 | K141: =IF(COUNT(AA141)=0,"",AA141) -> 1.59 | L141: =IF(COUNT(AB141:AC141)=0,"",AVERAGE(AB141:AC141)) ->  | M141: =IF(COUNT(AD141:AG141)=0,"",AVERAGE(AD141:AG141)) -> 4.535 | N141: =IF(COUNT(AH141)=0,"",AH141) -> 6.1 | O141: =IF(COUNT(AI141)=0,"",AI141) -> 23.4 | P141: =IF(COUNT(AJ141)=0,"",AJ141) -> 32.76 | Q141: 6.1 | R141: 28 | T141: 34.76666667 | U141: 13.94411765 | X141: 1.13 | Y141: 1.6 | Z141: 4.7 | AA141: 1.59 | AE141: 1.85 | AF141: 7.22 | AH141: 6.1 | AI141: 23.4 | AJ141: 32.76 | AL141: 3.9 | AM141: 3.3 | AN141: 7.2 | AO141: 10 | AP141: 28 | AX141: 24 | AY141: 45.1 | AZ141: 35.2
A142: 2015-01-06 | B142: Jan 06 | C142: 2015-01-06 | D142: 01-Jan 06 | E142: 1 | F142: 6 | G142: 2015 | H142: 10:00:00 | I142: 1.03 | J142: 2.7 | K142: 1.38 | M142: 5.22 | N142: 6.5 | O142: 15.8 | Q142: 6.6 | R142: 33 | T142: 30.26666667 | U142: 12.36866667 | X142: 1.03 | Y142: 1.7 | Z142: 3.7 | AA142: 1.38 | AF142: 5.22 | AH142: 6.5 | AI142: 15.8 | AL142: 4.3 | AM142: 3.2 | AN142: 7.4 | AO142: 11.5 | AP142: 33 | AX142: 20.3 | AY142: 40.1 | AZ142: 30.4
A143: 2015-01-06 | B143: Jan 06 | C143: 2015-01-06 | D143: 01-Jan 06 | E143: 1 | F143: 6 | G143: 2015 | H143: 11:00:00 | I143: 1.31 | J143: 2.6 | K143: 1.25 | M143: 13.92 | N143: 7.3 | O143: 20 | Q143: 6.025 | R143: 37 | T143: 30.06666667 | U143: 13.3875 | X143: 1.31 | Y143: 1.9 | Z143: 3.3 | AA143: 1.25 | AF143: 4.17 | AG143: 23.67 | AH143: 7.3 | AI143: 20 | AL143: 5.2 | AM143: 3.3 | AN143: 7.3 | AO143: 8.3 | AP143: 37 | AX143: 25.1 | AY143: 36.5 | AZ143: 28.6
A144: 2015-01-06 | B144: Jan 06 | C144: 2015-01-06 | D144: 01-Jan 06 | E144: 1 | F144: 6 | G144: 2015 | H144: 12:00:00 | I144: 1.06 | J144: 2.85 | K144: 1.19 | M144: 14.435 | N144: 9.9 | O144: 18.2 | Q144: 5.05 | R144: 25 | T144: 24.03333333 | U144: 11.38875 | X144: 1.06 | Y144: 1.9 | Z144: 3.8 | AA144: 1.19 | AF144: 5.08 | AG144: 23.79 | AH144: 9.9 | AI144: 18.2 | AL144: 3.9 | AM144: 3.3 | AN144: 6.2 | AO144: 6.8 | AP144: 25 | AX144: 17.6 | AY144: 27.8 | AZ144: 26.7
A145: 2015-01-06 | B145: Jan 06 | C145: 2015-01-06 | D145: 01-Jan 06 | E145: 1 | F145: 6 | G145: 2015 | H145: 13:00:00 | I145: 0.8 | J145: 2.7 | K145: 1.19 | M145: 15.825 | N145: 9.6 | O145: 19.6 | P145: 30.19 | Q145: 6.25 | R145: 27 | T145: 20.8 | U145: 12.51941176 | X145: 0.8 | Y145: 1.9 | Z145: 3.5 | AA145: 1.19 | AF145: 3.16 | AG145: 28.49 | AH145: 9.6 | AI145: 19.6 | AJ145: 30.19 | AL145: 3.7 | AM145: 3.8 | AN145: 10.8 | AO145: 6.7 | AP145: 27 | AX145: 14 | AY145: 24.6 | AZ145: 23.8
A146: 2015-01-06 | B146: Jan 06 | C146: 2015-01-06 | D146: 01-Jan 06 | E146: 1 | F146: 6 | G146: 2015 | H146: 14:00:00 | I146: 0.7 | J146: 3 | K146: 1.27 | M146: 14.785 | N146: 10.6 | O146: 22.1 | P146: 29.46 | Q146: 8.85 | R146: 25 | T146: 24.1 | U146: 13.67058824 | X146: 0.7 | Y146: 1.9 | Z146: 4.1 | AA146: 1.27 | AF146: 2.92 | AG146: 26.65 | AH146: 10.6 | AI146: 22.1 | AJ146: 29.46 | AL146: 4 | AM146: 5.4 | AN146: 16 | AO146: 10 | AP146: 25 | AX146: 11.9 | AY146: 28.6 | AZ146: 31.8
A147: 2015-01-06 | B147: Jan 06 | C147: 2015-01-06 | D147: 01-Jan 06 | E147: 1 | F147: 6 | G147: 2015 | H147: 15:00:00 | I147: 0.87 | J147: 3.9 | K147: 1.36 | M147: 15.985 | N147: 12 | O147: 28.5 | P147: 21.58 | Q147: 11.875 | R147: 30 | T147: 25.16666667 | U147: 15.12235294 | X147: 0.87 | Y147: 1.8 | Z147: 6 | AA147: 1.36 | AF147: 4.15 | AG147: 27.82 | AH147: 12 | AI147: 28.5 | AJ147: 21.58 | AL147: 4.3 | AM147: 4.8 | AN147: 19.9 | AO147: 18.5 | AP147: 30 | AX147: 11.7 | AY147: 37.5 | AZ147: 26.3
A148: 2015-01-06 | B148: Jan 06 | C148: 2015-01-06 | D148: 01-Jan 06 | E148: 1 | F148: 6 | G148: 2015 | H148: 16:00:00 | I148: 0.8 | J148: 4.75 | K148: 1.48 | M148: 20.42 | N148: 15.3 | O148: 38.6 | P148: 27.64 | Q148: 13.825 | R148: 29 | T148: 33.23333333 | U148: 18.71529412 | X148: 0.8 | Y148: 1.9 | Z148: 7.6 | AA148: 1.48 | AF148: 4.78 | AG148: 36.06 | AH148: 15.3 | AI148: 38.6 | AJ148: 27.64 | AL148: 8.1 | AM148: 5 | AN148: 20.4 | AO148: 21.8 | AP148: 29 | AX148: 11.3 | AY148: 53.8 | AZ148: 34.6
A149: 2015-01-06 | B149: Jan 06 | C149: 2015-01-06 | D149: 01-Jan 06 | E149: 1 | F149: 6 | G149: 2015 | H149: 17:00:00 | I149: 0.88 | J149: 5.15 | K149: 1.61 | M149: 16.46 | N149: 14 | O149: 25.3 | P149: 24.96 | Q149: 12.725 | R149: 35 | T149: 47.83333333 | U149: 19.96294118 | X149: 0.88 | Y149: 2.1 | Z149: 8.2 | AA149: 1.61 | AF149: 4.98 | AG149: 27.94 | AH149: 14 | AI149: 25.3 | AJ149: 24.96 | AL149: 6.7 | AM149: 4.9 | AN149: 17.5 | AO149: 21.8 | AP149: 35 | AX149: 14.5 | AY149: 67.6 | AZ149: 61.4
A150: 2015-01-06 | B150: Jan 06 | C150: 2015-01-06 | D150: 01-Jan 06 | E150: 1 | F150: 6 | G150: 2015 | H150: 18:00:00 | I150: 1 | J150: 5.45 | K150: 1.82 | M150: 19.26 | N150: 13 | O150: 28.9 | P150: 36.94 | Q150: 13.05 | R150: 44 | T150: 40.96666667 | U150: 20.59882353 | X150: 1 | Y150: 2.4 | Z150: 8.5 | AA150: 1.82 | AF150: 5.13 | AG150: 33.39 | AH150: 13 | AI150: 28.9 | AJ150: 36.94 | AL150: 5.7 | AM150: 4.4 | AN150: 20.9 | AO150: 21.2 | AP150: 44 | AX150: 15.1 | AY150: 60.3 | AZ150: 47.5
A151: 2015-01-06 | B151: Jan 06 | C151: 2015-01-06 | D151: 01-Jan 06 | E151: 1 | F151: 6 | G151: 2015 | H151: 19:00:00 | I151: 1.13 | J151: 5.65 | K151: 2.14 | M151: 20.62 | N151: 13.7 | O151: 37.4 | P151: 46.09 | Q151: 14.125 | R151: 53 | T151: 40.9 | U151: 22.65882353 | X151: 1.13 | Y151: 2.6 | Z151: 8.7 | AA151: 2.14 | AF151: 5.53 | AG151: 35.71 | AH151: 13.7 | AI151: 37.4 | AJ151: 46.09 | AL151: 6.7 | AM151: 4 | AN151: 24.4 | AO151: 21.4 | AP151: 53 | AX151: 13.8 | AY151: 58.3 | AZ151: 50.6
A152: 2015-01-06 | B152: Jan 06 | C152: 2015-01-06 | D152: 01-Jan 06 | E152: 1 | F152: 6 | G152: 2015 | H152: 20:00:00 | I152: 1.21 | J152: 6.45 | K152: 2.48 | M152: 22.575 | N152: 12.8 | O152: 41 | P152: 24.27 | Q152: 15.775 | R152: 55 | T152: 33.13333333 | U152: 21.01823529 | X152: 1.21 | Y152: 2.9 | Z152: 10 | AA152: 2.48 | AF152: 4.84 | AG152: 40.31 | AH152: 12.8 | AI152: 41 | AJ152: 24.27 | AL152: 7.3 | AM152: 3.8 | AN152: 31.3 | AO152: 20.7 | AP152: 55 | AX152: 13.6 | AY152: 54.5 | AZ152: 31.3
A153: 2015-01-06 | B153: Jan 06 | C153: 2015-01-06 | D153: 01-Jan 06 | E153: 1 | F153: 6 | G153: 2015 | H153: 21:00:00 | I153: 1.1 | J153: 7.15 | K153: 2.7 | M153: 24.45 | N153: 13.3 | O153: 34.5 | P153: 14.79 | Q153: 8.1 | R153: 60 | T153: 38.23333333 | U153: 19.80529412 | X153: 1.1 | Y153: 4 | Z153: 10.3 | AA153: 2.7 | AF153: 5.41 | AG153: 43.49 | AH153: 13.3 | AI153: 34.5 | AJ153: 14.79 | AL153: 6.7 | AM153: 3.7 | AN153: 12.8 | AO153: 9.2 | AP153: 60 | AX153: 14.3 | AY153: 56.1 | AZ153: 44.3
A154: 2015-01-06 | B154: Jan 06 | C154: 2015-01-06 | D154: 01-Jan 06 | E154: 1 | F154: 6 | G154: 2015 | H154: 22:00:00 | I154: 0.95 | J154: 7.9 | K154: 2.82 | M154: 35.28 | N154: 29.5 | O154: 33.8 | P154: 13.42 | Q154: 7.1 | R154: 61 | T154: 39.66666667 | U154: 22.07352941 | X154: 0.95 | Y154: 4.4 | Z154: 11.4 | AA154: 2.82 | AF154: 8.45 | AG154: 62.11 | AH154: 29.5 | AI154: 33.8 | AJ154: 13.42 | AL154: 4.5 | AM154: 3.6 | AN154: 13.3 | AO154: 7 | AP154: 61 | AX154: 11.8 | AY154: 56.3 | AZ154: 50.9
A155: 2015-01-06 | B155: Jan 06 | C155: 2015-01-06 | D155: 01-Jan 06 | E155: 1 | F155: 6 | G155: 2015 | H155: 23:00:00 | I155: 0.85 | J155: 10.7 | K155: 2.95 | M155: 30.99 | N155: 38.1 | O155: 64.2 | P155: 20.73 | Q155: 6.95 | R155: 48 | T155: 41.63333333 | U155: 24.17117647 | X155: 0.85 | Y155: 5.5 | Z155: 15.9 | AA155: 2.95 | AF155: 16.19 | AG155: 45.79 | AH155: 38.1 | AI155: 64.2 | AJ155: 20.73 | AL155: 3.8 | AM155: 3.6 | AN155: 12.8 | AO155: 7.6 | AP155: 48 | AX155: 10.2 | AY155: 64.5 | AZ155: 50.2
A156: 2015-01-07 | B156: Jan 07 | C156: 2015-01-07 | D156: 01-Jan 07 | E156: 1 | F156: 7 | G156: 2015 | H156: 00:00:00 | I156: 0.59 | J156: 13.5 | K156: 3.1 | M156: 25.775 | N156: 65.3 | O156: 77.4 | P156: 21.92 | Q156: 6.9 | R156: 60 | T156: 44.86666667 | U156: 27.59176471 | X156: 0.59 | Y156: 6.3 | Z156: 20.7 | AA156: 3.1 | AF156: 14.53 | AG156: 37.02 | AH156: 65.3 | AI156: 77.4 | AJ156: 21.92 | AL156: 4 | AM156: 3.8 | AN156: 11.7 | AO156: 8.1 | AP156: 60 | AX156: 11.8 | AY156: 63.7 | AZ156: 59.1
A157: 2015-01-07 | B157: Jan 07 | C157: 2015-01-07 | D157: 01-Jan 07 | E157: 1 | F157: 7 | G157: 2015 | H157: 01:00:00 | I157: 0.88 | J157: 12.05 | M157: 26.445 | N157: 57 | O157: 71.3 | P157: 27.64 | Q157: 9.375 | R157: 60 | T157: 59.9 | U157: 30.074 | X157: 0.88 | Y157: 6 | Z157: 18.1 | AF157: 17.89 | AG157: 35 | AH157: 57 | AI157: 71.3 | AJ157: 27.64 | AL157: 3.8 | AM157: 3.9 | AN157: 20.5 | AO157: 9.3 | AP157: 60 | AY157: 67.3 | AZ157: 52.5
A158: 2015-01-07 | B158: Jan 07 | C158: 2015-01-07 | D158: 01-Jan 07 | E158: 1 | F158: 7 | G158: 2015 | H158: 02:00:00 | I158: 0.71 | J158: 12 | K158: 3.25 | M158: 31.6 | N158: 58.6 | O158: 59.8 | P158: 27.08 | Q158: 8.15 | R158: 49 | T158: 41.43333333 | U158: 26.03176471 | X158: 0.71 | Y158: 5.3 | Z158: 18.7 | AA158: 3.25 | AF158: 16.76 | AG158: 46.44 | AH158: 58.6 | AI158: 59.8 | AJ158: 27.08 | AL158: 4.1 | AM158: 3.9 | AN158: 14.4 | AO158: 10.2 | AP158: 49 | AX158: 8 | AY158: 63.6 | AZ158: 52.7
A159: 2015-01-07 | B159: Jan 07 | C159: 2015-01-07 | D159: 01-Jan 07 | E159: 1 | F159: 7 | G159: 2015 | H159: 03:00:00 | I159: 1.29 | J159: 11.2 | K159: 3.33 | M159: 31.745 | N159: 35.9 | O159: 57.7 | P159: 31.16 | Q159: 8.766666667 | R159: 41 | T159: 42.83333333 | U159: 25.691875 | X159: 1.29 | Y159: 5.2 | Z159: 17.2 | AA159: 3.33 | AF159: 20.82 | AG159: 42.67 | AH159: 35.9 | AI159: 57.7 | AJ159: 31.16 | AM159: 2.5 | AN159: 13.3 | AO159: 10.5 | AP159: 41 | AX159: 8.5 | AY159: 54.6 | AZ159: 65.4
A160: 2015-01-07 | B160: Jan 07 | C160: 2015-01-07 | D160: 01-Jan 07 | E160: 1 | F160: 7 | G160: 2015 | H160: 04:00:00 | I160: 1.09 | J160: 11.75 | K160: 3.25 | M160: 24.715 | N160: 20.2 | O160: 49.9 | P160: 30.51 | Q160: 14.15 | R160: 44 | T160: 36.36666667 | U160: 22.79882353 | X160: 1.09 | Y160: 5.2 | Z160: 18.3 | AA160: 3.25 | AF160: 17.11 | AG160: 32.32 | AH160: 20.2 | AI160: 49.9 | AJ160: 30.51 | AL160: 4.6 | AM160: 3.4 | AN160: 29.4 | AO160: 19.2 | AP160: 44 | AX160: 8.7 | AY160: 43 | AZ160: 57.4
A161: 2015-01-07 | B161: Jan 07 | C161: 2015-01-07 | D161: 01-Jan 07 | E161: 1 | F161: 7 | G161: 2015 | H161: 05:00:00 | I161: 1.15 | J161: 12.55 | K161: 3.24 | M161: 26.745 | N161: 22.7 | O161: 55.6 | P161: 33.09 | Q161: 20.075 | R161: 49 | T161: 34.43333333 | U161: 25.11588235 | X161: 1.15 | Y161: 5.1 | Z161: 20 | AA161: 3.24 | AF161: 15.15 | AG161: 38.34 | AH161: 22.7 | AI161: 55.6 | AJ161: 33.09 | AL161: 6.5 | AM161: 3.6 | AN161: 43.5 | AO161: 26.7 | AP161: 49 | AX161: 12.3 | AY161: 53 | AZ161: 38
A162: 2015-01-07 | B162: Jan 07 | C162: 2015-01-07 | D162: 01-Jan 07 | E162: 1 | F162: 7 | G162: 2015 | H162: 06:00:00 | I162: 0.62 | J162: 11.55 | K162: 3.21 | M162: 33.155 | N162: 21.1 | O162: 80.9 | P162: 33.24 | Q162: 21.975 | R162: 59 | T162: 37.6 | U162: 28.71647059 | X162: 0.62 | Y162: 5 | Z162: 18.1 | AA162: 3.21 | AF162: 13.97 | AG162: 52.34 | AH162: 21.1 | AI162: 80.9 | AJ162: 33.24 | AL162: 6.3 | AM162: 3.5 | AN162: 45.5 | AO162: 32.6 | AP162: 59 | AX162: 13.2 | AY162: 46.9 | AZ162: 52.7
A163: 2015-01-07 | B163: Jan 07 | C163: 2015-01-07 | D163: 01-Jan 07 | E163: 1 | F163: 7 | G163: 2015 | H163: 07:00:00 | I163: 0.7 | J163: 19.8 | K163: 3.28 | M163: 34.64 | N163: 26.3 | O163: 134.6 | P163: 19.58 | Q163: 6.975 | R163: 52 | T163: 34.13333333 | U163: 28.49 | X163: 0.7 | Z163: 19.8 | AA163: 3.28 | AF163: 15.73 | AG163: 53.55 | AH163: 26.3 | AI163: 134.6 | AJ163: 19.58 | AL163: 4.7 | AM163: 3.5 | AN163: 10.5 | AO163: 9.2 | AP163: 52 | AX163: 13.5 | AY163: 42.3 | AZ163: 46.6
A164: 2015-01-07 | B164: Jan 07 | C164: 2015-01-07 | D164: 01-Jan 07 | E164: 1 | F164: 7 | G164: 2015 | H164: 08:00:00 | I164: 0.75 | J164: 13.5 | K164: 3.36 | M164: 32.895 | N164: 26.7 | O164: 49.1 | P164: 9.84 | Q164: 5.65 | R164: 25 | T164: 33.3 | U164: 19.41411765 | X164: 0.75 | Y164: 4.7 | Z164: 22.3 | AA164: 3.36 | AF164: 13.25 | AG164: 52.54 | AH164: 26.7 | AI164: 49.1 | AJ164: 9.84 | AL164: 7.6 | AM164: 3.5 | AN164: 6.6 | AO164: 4.9 | AP164: 25 | AX164: 13.1 | AY164: 42.5 | AZ164: 44.3
A165: 2015-01-07 | B165: Jan 07 | C165: 2015-01-07 | D165: 01-Jan 07 | E165: 1 | F165: 7 | G165: 2015 | H165: 09:00:00 | I165: 0.7 | J165: 10.6 | K165: 3.48 | M165: 28.295 | N165: 22.7 | O165: 20.7 | P165: 8.63 | Q165: 4.075 | R165: 16 | T165: 25.03333333 | U165: 14.2 | X165: 0.7 | Y165: 4.5 | Z165: 16.7 | AA165: 3.48 | AF165: 11.47 | AG165: 45.12 | AH165: 22.7 | AI165: 20.7 | AJ165: 8.63 | AL165: 4.6 | AM165: 3.7 | AN165: 4.5 | AO165: 3.5 | AP165: 16 | AX165: 13.2 | AY165: 29.3 | AZ165: 32.6
A166: 2015-01-07 | B166: Jan 07 | C166: 2015-01-07 | D166: 01-Jan 07 | E166: 1 | F166: 7 | G166: 2015 | H166: 10:00:00 | I166: 0.92 | J166: 6.6 | K166: 3.7 | M166: 21.56 | O166: 17.6 | P166: 7.37 | Q166: 3.575 | R166: 13 | T166: 20.4 | U166: 10.900625 | X166: 0.92 | Y166: 4.4 | Z166: 8.8 | AA166: 3.7 | AF166: 9.91 | AG166: 33.21 | AI166: 17.6 | AJ166: 7.37 | AL166: 2 | AM166: 4.6 | AN166: 4.5 | AO166: 3.2 | AP166: 13 | AX166: 10.9 | AY166: 25.2 | AZ166: 25.1
A167: 2015-01-07 | B167: Jan 07 | C167: 2015-01-07 | D167: 01-Jan 07 | E167: 1 | F167: 7 | G167: 2015 | H167: 11:00:00 | I167: 1.62 | J167: 3.85 | M167: 13.48 | O167: 13 | P167: 6.71 | Q167: 4.125 | R167: 13 | T167: 15.13333333 | U167: 9.023125 | X167: 1.62 | Y167: 4 | Z167: 3.7 | AE167: 6.75 | AF167: 3.72 | AG167: 29.97 | AI167: 13 | AJ167: 6.71 | AL167: 1.9 | AM167: 6.3 | AN167: 4.5 | AO167: 3.8 | AP167: 13 | AX167: 7.8 | AY167: 18.4 | AZ167: 19.2
A168: 2015-01-07 | B168: Jan 07 | C168: 2015-01-07 | D168: 01-Jan 07 | E168: 1 | F168: 7 | G168: 2015 | H168: 12:00:00 | I168: 1.95 | J168: 3.7 | M168: 10.22333333 | N168: 5.9 | O168: 18.4 | P168: 6.94 | Q168: 4.366666667 | R168: 11 | T168: 14.6 | U168: 8.6975 | X168: 1.95 | Y168: 3.8 | Z168: 3.6 | AE168: 4.55 | AF168: 2.47 | AG168: 23.65 | AH168: 5.9 | AI168: 18.4 | AJ168: 6.94 | AL168: 2.6 | AM168: 5.9 | AN168: 4.6 | AP168: 11 | AX168: 8.4 | AY168: 18 | AZ168: 17.4
A169: 2015-01-07 | B169: Jan 07 | C169: 2015-01-07 | D169: 01-Jan 07 | E169: 1 | F169: 7 | G169: 2015 | H169: 13:00:00 | I169: 2.02 | J169: 3.8 | M169: 10.69 | N169: 5 | O169: 15.2 | P169: 7.22 | Q169: 4.65 | R169: 11 | T169: 16.16666667 | U169: 8.659411765 | X169: 2.02 | Y169: 3.7 | Z169: 3.9 | AE169: 3.72 | AF169: 2.61 | AG169: 25.74 | AH169: 5 | AI169: 15.2 | AJ169: 7.22 | AL169: 2.8 | AM169: 5.5 | AN169: 5.7 | AO169: 4.6 | AP169: 11 | AX169: 7 | AY169: 19.5 | AZ169: 22
A170: 2015-01-07 | B170: Jan 07 | C170: 2015-01-07 | D170: 01-Jan 07 | E170: 1 | F170: 7 | G170: 2015 | H170: 14:00:00 | I170: 2.47 | J170: 3.35 | M170: 13.59 | N170: 5 | O170: 13.6 | P170: 9.12 | Q170: 4.85 | R170: 13 | T170: 16.43333333 | U170: 9.374117647 | X170: 2.47 | Y170: 3.4 | Z170: 3.3 | AE170: 3.43 | AF170: 2.44 | AG170: 34.9 | AH170: 5 | AI170: 13.6 | AJ170: 9.12 | AL170: 2.7 | AM170: 5.2 | AN170: 6.2 | AO170: 5.3 | AP170: 13 | AX170: 4.9 | AY170: 22.5 | AZ170: 21.9
A171: 2015-01-07 | B171: Jan 07 | C171: 2015-01-07 | D171: 01-Jan 07 | E171: 1 | F171: 7 | G171: 2015 | H171: 15:00:00 | I171: 2.62 | J171: 2.8 | K171: 1.38 | M171: 13.57333333 | N171: 6.3 | O171: 13.8 | P171: 11.87 | Q171: 5.525 | R171: 14 | T171: 16.9 | U171: 9.393888889 | X171: 2.62 | Y171: 2.9 | Z171: 2.7 | AA171: 1.38 | AE171: 3.36 | AF171: 1.18 | AG171: 36.18 | AH171: 6.3 | AI171: 13.8 | AJ171: 11.87 | AL171: 3.6 | AM171: 4.5 | AN171: 7.7 | AO171: 6.3 | AP171: 14 | AX171: 8.1 | AY171: 19.4 | AZ171: 23.2
A172: 2015-01-07 | B172: Jan 07 | C172: 2015-01-07 | D172: 01-Jan 07 | E172: 1 | F172: 7 | G172: 2015 | H172: 16:00:00 | I172: 2.73 | J172: 2 | K172: 1.24 | M172: 13.96666667 | N172: 5.3 | O172: 16.8 | P172: 11.27 | Q172: 5.85 | R172: 11 | T172: 16.4 | U172: 9.268888889 | X172: 2.73 | Y172: 1.9 | Z172: 2.1 | AA172: 1.24 | AE172: 3.47 | AF172: 1.13 | AG172: 37.3 | AH172: 5.3 | AI172: 16.8 | AJ172: 11.27 | AL172: 4.6 | AM172: 4.2 | AN172: 7.7 | AO172: 6.9 | AP172: 11 | AX172: 5.2 | AY172: 24.2 | AZ172: 19.8
A173: 2015-01-07 | B173: Jan 07 | C173: 2015-01-07 | D173: 01-Jan 07 | E173: 1 | F173: 7 | G173: 2015 | H173: 17:00:00 | I173: 4.66 | J173: 1.4 | K173: 1.24 | M173: 12.59333333 | N173: 4.5 | O173: 13.2 | P173: 14.17 | Q173: 5.475 | R173: 12 | T173: 16.06666667 | U173: 8.913888889 | X173: 4.66 | Y173: 1.3 | Z173: 1.5 | AA173: 1.24 | AE173: 3.07 | AF173: 0.99 | AG173: 33.72 | AH173: 4.5 | AI173: 13.2 | AJ173: 14.17 | AL173: 4.7 | AM173: 4.2 | AN173: 6.7 | AO173: 6.3 | AP173: 12 | AX173: 3.9 | AY173: 22.5 | AZ173: 21.8
A174: 2015-01-07 | B174: Jan 07 | C174: 2015-01-07 | D174: 01-Jan 07 | E174: 1 | F174: 7 | G174: 2015 | H174: 18:00:00 | I174: 5.52 | J174: 1.35 | K174: 1.26 | M174: 13.83 | N174: 4.4 | O174: 22.4 | P174: 10.71 | Q174: 4.25 | R174: 11 | T174: 13.73333333 | U174: 8.461764706 | X174: 5.52 | Y174: 1.2 | Z174: 1.5 | AA174: 1.26 | AF174: 1.01 | AG174: 26.65 | AH174: 4.4 | AI174: 22.4 | AJ174: 10.71 | AL174: 4.6 | AM174: 4 | AN174: 3.9 | AO174: 4.5 | AP174: 11 | AX174: 4.3 | AY174: 17.7 | AZ174: 19.2
A175: 2015-01-07 | B175: Jan 07 | C175: 2015-01-07 | D175: 01-Jan 07 | E175: 1 | F175: 7 | G175: 2015 | H175: 19:00:00 | I175: 4.76 | J175: 1.45 | K175: 1.26 | M175: 7.263333333 | N175: 3.3 | O175: 22.6 | P175: 8.67 | Q175: 3.65 | R175: 11 | T175: 15.46666667 | U175: 7.626666667 | X175: 4.76 | Y175: 1.1 | Z175: 1.8 | AA175: 1.26 | AE175: 2.12 | AF175: 0.77 | AG175: 18.9 | AH175: 3.3 | AI175: 22.6 | AJ175: 8.67 | AL175: 3.3 | AM175: 3.9 | AN175: 3.7 | AO175: 3.7 | AP175: 11 | AX175: 7.4 | AY175: 20.2 | AZ175: 18.8
A176: 2015-01-07 | B176: Jan 07 | C176: 2015-01-07 | D176: 01-Jan 07 | E176: 1 | F176: 7 | G176: 2015 | H176: 20:00:00 | I176: 4.13 | J176: 1.6 | K176: 1.27 | M176: 8.573333333 | N176: 4 | O176: 12.9 | P176: 7.7 | Q176: 3.075 | R176: 9 | T176: 13.96666667 | U176: 6.784444444 | X176: 4.13 | Y176: 1 | Z176: 2.2 | AA176: 1.27 | AE176: 1.85 | AF176: 0.59 | AG176: 23.28 | AH176: 4 | AI176: 12.9 | AJ176: 7.7 | AL176: 2.5 | AM176: 3.7 | AN176: 2.9 | AO176: 3.2 | AP176: 9 | AX176: 9 | AY176: 15.9 | AZ176: 17
A177: 2015-01-07 | B177: Jan 07 | C177: 2015-01-07 | D177: 01-Jan 07 | E177: 1 | F177: 7 | G177: 2015 | H177: 21:00:00 | I177: 2.15 | J177: 1.45 | K177: 1.22 | M177: 5.66 | N177: 3.4 | O177: 8.4 | P177: 7.09 | Q177: 2.725 | R177: 10 | T177: 13.66666667 | U177: 5.78 | X177: 2.15 | Y177: 1 | Z177: 1.9 | AA177: 1.22 | AE177: 1.76 | AF177: 0.6 | AG177: 14.62 | AH177: 3.4 | AI177: 8.4 | AJ177: 7.09 | AL177: 2.1 | AM177: 3.8 | AN177: 2.2 | AO177: 2.8 | AP177: 10 | AX177: 10.7 | AY177: 14.7 | AZ177: 15.6
A178: 2015-01-07 | B178: Jan 07 | C178: 2015-01-07 | D178: 01-Jan 07 | E178: 1 | F178: 7 | G178: 2015 | H178: 22:00:00 | I178: 1.14 | J178: 1.35 | K178: 1.18 | M178: 6.966666667 | N178: 2.5 | O178: 6.7 | P178: 7.07 | Q178: 3.225 | R178: 10 | T178: 13.86666667 | U178: 5.927222222 | X178: 1.14 | Y178: 0.9 | Z178: 1.8 | AA178: 1.18 | AE178: 1.94 | AF178: 0.57 | AG178: 18.39 | AH178: 2.5 | AI178: 6.7 | AJ178: 7.07 | AL178: 1.8 | AM178: 4.6 | AN178: 2.9 | AO178: 3.6 | AP178: 10 | AX178: 12.8 | AY178: 14.7 | AZ178: 14.1
A179: 2015-01-07 | B179: Jan 07 | C179: 2015-01-07 | D179: 01-Jan 07 | E179: 1 | F179: 7 | G179: 2015 | H179: 23:00:00 | I179: 1.02 | J179: 1.45 | K179: 1.15 | M179: 7.973333333 | N179: 2.8 | O179: 5.8 | P179: 6.71 | Q179: 3.775 | R179: 10 | T179: 13.56666667 | U179: 6.116666667 | X179: 1.02 | Y179: 0.9 | Z179: 2 | AA179: 1.15 | AE179: 2.12 | AF179: 0.58 | AG179: 21.22 | AH179: 2.8 | AI179: 5.8 | AJ179: 6.71 | AL179: 2.1 | AM179: 4.9 | AN179: 3.9 | AO179: 4.2 | AP179: 10 | AX179: 13.6 | AY179: 15.3 | AZ179: 11.8
A180: 2015-01-08 | B180: Jan 08 | C180: 2015-01-08 | D180: 01-Jan 08 | E180: 1 | F180: 8 | G180: 2015 | H180: 00:00:00 | I180: 0.8 | J180: 1.55 | K180: 1.19 | M180: 7.51 | N180: 2.9 | O180: 4.2 | P180: 6.47 | Q180: 3.775 | R180: 10 | T180: 12.06666667 | U180: 5.693888889 | X180: 0.8 | Y180: 0.9 | Z180: 2.2 | AA180: 1.19 | AE180: 1.94 | AF180: 0.53 | AG180: 20.06 | AH180: 2.9 | AI180: 4.2 | AJ180: 6.47 | AL180: 1.5 | AM180: 5 | AN180: 4 | AO180: 4.6 | AP180: 10 | AX180: 15.5 | AY180: 11.3 | AZ180: 9.4
A181: 2015-01-08 | B181: Jan 08 | C181: 2015-01-08 | D181: 01-Jan 08 | E181: 1 | F181: 8 | G181: 2015 | H181: 01:00:00 | I181: 0.65 | J181: 1.3 | M181: 7.673333333 | N181: 2.9 | O181: 4.9 | P181: 7.48 | Q181: 3.9 | R181: 11 | T181: 10.65 | U181: 5.590625 | X181: 0.65 | Y181: 0.9 | Z181: 1.7 | AE181: 1.67 | AF181: 0.53 | AG181: 20.82 | AH181: 2.9 | AI181: 4.9 | AJ181: 7.48 | AL181: 1.8 | AM181: 4.8 | AN181: 4.3 | AO181: 4.7 | AP181: 11 | AY181: 11.2 | AZ181: 10.1
A182: 2015-01-08 | B182: Jan 08 | C182: 2015-01-08 | D182: 01-Jan 08 | E182: 1 | F182: 8 | G182: 2015 | H182: 02:00:00 | I182: 0.5 | J182: 1.35 | K182: 1.14 | M182: 5.423333333 | N182: 3.6 | O182: 5.4 | P182: 7.67 | Q182: 3.425 | R182: 11 | T182: 12.86666667 | U182: 5.587777778 | X182: 0.5 | Y182: 0.9 | Z182: 1.8 | AA182: 1.14 | AE182: 1.96 | AF182: 0.62 | AG182: 13.69 | AH182: 3.6 | AI182: 5.4 | AJ182: 7.67 | AL182: 2.7 | AM182: 4.1 | AN182: 3.4 | AO182: 3.5 | AP182: 11 | AX182: 13.1 | AY182: 14.6 | AZ182: 10.9
A183: 2015-01-08 | B183: Jan 08 | C183: 2015-01-08 | D183: 01-Jan 08 | E183: 1 | F183: 8 | G183: 2015 | H183: 03:00:00 | I183: 0.5 | J183: 1.3 | K183: 1.36 | M183: 6.046666667 | N183: 3.3 | O183: 7.5 | P183: 7.73 | Q183: 3.866666667 | R183: 13 | T183: 17.5 | U183: 6.954705882 | X183: 0.5 | Y183: 1 | Z183: 1.6 | AA183: 1.36 | AE183: 3.62 | AF183: 0.6 | AG183: 13.92 | AH183: 3.3 | AI183: 7.5 | AJ183: 7.73 | AL183: 2.7 | AM183: 4.1 | AN183: 4.8 | AP183: 13 | AX183: 12.4 | AY183: 20.6 | AZ183: 19.5
A184: 2015-01-08 | B184: Jan 08 | C184: 2015-01-08 | D184: 01-Jan 08 | E184: 1 | F184: 8 | G184: 2015 | H184: 04:00:00 | I184: 0.57 | J184: 1.25 | K184: 1.4 | M184: 5.89 | N184: 3.3 | O184: 10.7 | P184: 8.47 | Q184: 4.733333333 | R184: 15 | T184: 25.26666667 | U184: 8.800588235 | X184: 0.57 | Y184: 0.9 | Z184: 1.6 | AA184: 1.4 | AE184: 2.77 | AF184: 0.46 | AG184: 14.44 | AH184: 3.3 | AI184: 10.7 | AJ184: 8.47 | AL184: 3 | AM184: 5.1 | AN184: 6.1 | AP184: 15 | AX184: 14.2 | AY184: 23.2 | AZ184: 38.4
A185: 2015-01-08 | B185: Jan 08 | C185: 2015-01-08 | D185: 01-Jan 08 | E185: 1 | F185: 8 | G185: 2015 | H185: 05:00:00 | I185: 0.75 | J185: 1.3 | K185: 1.34 | M185: 8.53 | N185: 3.9 | O185: 12 | P185: 9.31 | Q185: 7.133333333 | R185: 21 | T185: 26.2 | U185: 10.38176471 | X185: 0.75 | Y185: 0.9 | Z185: 1.7 | AA185: 1.34 | AE185: 2.22 | AF185: 0.45 | AG185: 22.92 | AH185: 3.9 | AI185: 12 | AJ185: 9.31 | AL185: 3.1 | AM185: 5.6 | AN185: 12.7 | AP185: 21 | AX185: 16 | AY185: 29.7 | AZ185: 32.9
A186: 2015-01-08 | B186: Jan 08 | C186: 2015-01-08 | D186: 01-Jan 08 | E186: 1 | F186: 8 | G186: 2015 | H186: 06:00:00 | I186: 0.69 | J186: 1.45 | K186: 1.2 | M186: 11.59 | N186: 6.1 | O186: 20.1 | P186: 10.58 | Q186: 9.275 | R186: 22 | T186: 33.33333333 | U186: 13.08 | X186: 0.69 | Y186: 0.9 | Z186: 2 | AA186: 1.2 | AE186: 2.71 | AF186: 0.75 | AG186: 31.31 | AH186: 6.1 | AI186: 20.1 | AJ186: 10.58 | AL186: 3 | AM186: 5.8 | AN186: 17.1 | AO186: 11.2 | AP186: 22 | AX186: 19.9 | AY186: 43.4 | AZ186: 36.7
A187: 2015-01-08 | B187: Jan 08 | C187: 2015-01-08 | D187: 01-Jan 08 | E187: 1 | F187: 8 | G187: 2015 | H187: 07:00:00 | I187: 0.97 | J187: 2.5 | K187: 1.14 | M187: 14.92666667 | N187: 7.6 | O187: 75.4 | P187: 15.11 | Q187: 8.6 | R187: 32 | T187: 39.76666667 | U187: 19.6 | X187: 0.97 | Z187: 2.5 | AA187: 1.14 | AE187: 5.34 | AF187: 1.79 | AG187: 37.65 | AH187: 7.6 | AI187: 75.4 | AJ187: 15.11 | AL187: 3.2 | AM187: 5.8 | AN187: 15 | AO187: 10.4 | AP187: 32 | AX187: 22.4 | AY187: 55 | AZ187: 41.9
A188: 2015-01-08 | B188: Jan 08 | C188: 2015-01-08 | D188: 01-Jan 08 | E188: 1 | F188: 8 | G188: 2015 | H188: 08:00:00 | I188: 0.83 | J188: 2.3 | K188: 1.09 | M188: 15.86666667 | N188: 7.5 | O188: 28.7 | P188: 30.86 | Q188: 8.133333333 | R188: 31 | T188: 36.43333333 | U188: 17.72375 | X188: 0.83 | Z188: 2.3 | AA188: 1.09 | AE188: 6.53 | AF188: 2.65 | AG188: 38.42 | AH188: 7.5 | AI188: 28.7 | AJ188: 30.86 | AL188: 3.5 | AN188: 12.3 | AO188: 8.6 | AP188: 31 | AX188: 25.8 | AY188: 42 | AZ188: 41.5
A189: 2015-01-08 | B189: Jan 08 | C189: 2015-01-08 | D189: 01-Jan 08 | E189: 1 | F189: 8 | G189: 2015 | H189: 09:00:00 | I189: 1.1 | J189: 1.75 | K189: 1 | M189: 12.93333333 | N189: 5.8 | O189: 14.2 | P189: 17.43 | Q189: 6.233333333 | R189: 19 | T189: 28.96666667 | U189: 12.14294118 | X189: 1.1 | Y189: 1.5 | Z189: 2 | AA189: 1 | AE189: 4.96 | AF189: 2.9 | AG189: 30.94 | AH189: 5.8 | AI189: 14.2 | AJ189: 17.43 | AL189: 3.8 | AN189: 7.7 | AO189: 7.2 | AP189: 19 | AX189: 22 | AY189: 31.3 | AZ189: 33.6
A190: 2015-01-08 | B190: Jan 08 | C190: 2015-01-08 | D190: 01-Jan 08 | E190: 1 | F190: 8 | G190: 2015 | H190: 10:00:00 | I190: 1.27 | J190: 1.8 | K190: 0.91 | M190: 11.45666667 | N190: 5 | O190: 10.1 | P190: 9.26 | Q190: 6.133333333 | R190: 15 | T190: 25.96666667 | U190: 10.34176471 | X190: 1.27 | Y190: 1.4 | Z190: 2.2 | AA190: 0.91 | AE190: 4.1 | AF190: 3.2 | AG190: 27.07 | AH190: 5 | AI190: 10.1 | AJ190: 9.26 | AL190: 5.1 | AN190: 6.8 | AO190: 6.5 | AP190: 15 | AX190: 19.6 | AY190: 29.8 | AZ190: 28.5
A191: 2015-01-08 | B191: Jan 08 | C191: 2015-01-08 | D191: 01-Jan 08 | E191: 1 | F191: 8 | G191: 2015 | H191: 11:00:00 | I191: 1.29 | J191: 2 | K191: 0.95 | M191: 12.32666667 | N191: 5.1 | O191: 12.7 | P191: 9.91 | Q191: 6.15 | T191: 23.93333333 | U191: 10.33533333 | X191: 1.29 | Y191: 1.3 | Z191: 2.7 | AA191: 0.95 | AE191: 3.77 | AF191: 4.03 | AG191: 29.18 | AH191: 5.1 | AI191: 12.7 | AJ191: 9.91 | AL191: 6.2 | AO191: 6.1 | AX191: 16 | AY191: 29.4 | AZ191: 26.4
A192: 2015-01-08 | B192: Jan 08 | C192: 2015-01-08 | D192: 01-Jan 08 | E192: 1 | F192: 8 | G192: 2015 | H192: 12:00:00 | I192: 1.03 | J192: 1.7 | K192: 0.98 | M192: 9.056666667 | N192: 4.4 | O192: 10.2 | P192: 9.73 | Q192: 6.15 | R192: 14 | T192: 22.83333333 | U192: 9.481875 | X192: 1.03 | Y192: 1.3 | Z192: 2.1 | AA192: 0.98 | AE192: 4.25 | AF192: 3.08 | AG192: 19.84 | AH192: 4.4 | AI192: 10.2 | AJ192: 9.73 | AL192: 6.6 | AO192: 5.7 | AP192: 14 | AX192: 13.5 | AY192: 28.2 | AZ192: 26.8
A193: 2015-01-08 | B193: Jan 08 | C193: 2015-01-08 | D193: 01-Jan 08 | E193: 1 | F193: 8 | G193: 2015 | H193: 13:00:00 | I193: 1.51 | J193: 1.8 | K193: 1.01 | M193: 9.61 | N193: 4.6 | O193: 17.1 | P193: 8.82 | Q193: 6.05 | R193: 14 | T193: 22.1 | U193: 9.866875 | X193: 1.51 | Y193: 1.4 | Z193: 2.2 | AA193: 1.01 | AE193: 3.84 | AF193: 3.63 | AG193: 21.36 | AH193: 4.6 | AI193: 17.1 | AJ193: 8.82 | AL193: 6 | AO193: 6.1 | AP193: 14 | AX193: 12.6 | AY193: 27.7 | AZ193: 26
A194: 2015-01-08 | B194: Jan 08 | C194: 2015-01-08 | D194: 01-Jan 08 | E194: 1 | F194: 8 | G194: 2015 | H194: 14:00:00 | I194: 1.67 | J194: 1.85 | K194: 1.08 | M194: 10.70666667 | N194: 6.3 | O194: 18.4 | P194: 14.21 | Q194: 5.966666667 | R194: 18 | T194: 21.73333333 | U194: 10.50470588 | X194: 1.67 | Y194: 1.5 | Z194: 2.2 | AA194: 1.08 | AE194: 3.87 | AF194: 4.39 | AG194: 23.86 | AH194: 6.3 | AI194: 18.4 | AJ194: 14.21 | AL194: 5.6 | AN194: 6.1 | AO194: 6.2 | AP194: 18 | AX194: 12.4 | AY194: 28.3 | AZ194: 24.5
A195: 2015-01-08 | B195: Jan 08 | C195: 2015-01-08 | D195: 01-Jan 08 | E195: 1 | F195: 8 | G195: 2015 | H195: 15:00:00 | I195: 1.55 | J195: 2.1 | K195: 1.27 | M195: 10.88 | N195: 8.6 | O195: 12.9 | P195: 19.84 | Q195: 6.6 | R195: 19 | T195: 25.13333333 | U195: 11.48235294 | X195: 1.55 | Y195: 1.6 | Z195: 2.6 | AA195: 1.27 | AE195: 4.2 | AF195: 4.01 | AG195: 24.43 | AH195: 8.6 | AI195: 12.9 | AJ195: 19.84 | AL195: 4.9 | AN195: 7.4 | AO195: 7.5 | AP195: 19 | AX195: 14.9 | AY195: 35.3 | AZ195: 25.2
A196: 2015-01-08 | B196: Jan 08 | C196: 2015-01-08 | D196: 01-Jan 08 | E196: 1 | F196: 8 | G196: 2015 | H196: 16:00:00 | I196: 1.99 | J196: 2.3 | K196: 1.58 | M196: 11.70666667 | N196: 12.4 | O196: 14.6 | P196: 19.71 | Q196: 8.9 | R196: 22 | T196: 28.9 | U196: 12.28125 | X196: 1.99 | Y196: 1.6 | Z196: 3 | AA196: 1.58 | AE196: 5.51 | AF196: 3.44 | AG196: 26.17 | AH196: 12.4 | AI196: 14.6 | AJ196: 19.71 | AL196: 6 | AN196: 9.5 | AO196: 11.2 | AP196: 22 | AX196: 14 | AY196: 43.8
A197: 2015-01-08 | B197: Jan 08 | C197: 2015-01-08 | D197: 01-Jan 08 | E197: 1 | F197: 8 | G197: 2015 | H197: 17:00:00 | I197: 1.52 | J197: 3.2 | K197: 1.94 | M197: 12.76 | N197: 22.9 | O197: 21.1 | P197: 21.56 | Q197: 10.56666667 | R197: 29 | T197: 30.35 | U197: 14.69375 | X197: 1.52 | Y197: 1.7 | Z197: 4.7 | AA197: 1.94 | AE197: 5.11 | AF197: 4.15 | AG197: 29.02 | AH197: 22.9 | AI197: 21.1 | AJ197: 21.56 | AL197: 4 | AN197: 13.8 | AO197: 13.9 | AP197: 29 | AX197: 15.8 | AY197: 44.9
A198: 2015-01-08 | B198: Jan 08 | C198: 2015-01-08 | D198: 01-Jan 08 | E198: 1 | F198: 8 | G198: 2015 | H198: 18:00:00 | I198: 1.07 | J198: 4.1 | K198: 2.29 | M198: 15.01666667 | N198: 21.7 | O198: 24.3 | P198: 18.65 | Q198: 12.56666667 | R198: 32 | T198: 32.9 | U198: 16.0475 | X198: 1.07 | Y198: 2 | Z198: 6.2 | AA198: 2.29 | AE198: 7.27 | AF198: 5.01 | AG198: 32.77 | AH198: 21.7 | AI198: 24.3 | AJ198: 18.65 | AL198: 4.5 | AN198: 16.5 | AO198: 16.7 | AP198: 32 | AX198: 16.2 | AY198: 49.6
A199: 2015-01-08 | B199: Jan 08 | C199: 2015-01-08 | D199: 01-Jan 08 | E199: 1 | F199: 8 | G199: 2015 | H199: 19:00:00 | I199: 1.59 | J199: 4.3 | K199: 2.54 | M199: 17.58333333 | N199: 22.4 | O199: 24.9 | P199: 17.61 | Q199: 11.1 | R199: 26 | T199: 32.66666667 | U199: 16.59944444 | X199: 1.59 | Y199: 2.4 | Z199: 6.2 | AA199: 2.54 | AE199: 10.07 | AF199: 6.84 | AG199: 35.84 | AH199: 22.4 | AI199: 24.9 | AJ199: 17.61 | AL199: 4 | AM199: 8.3 | AN199: 19.6 | AO199: 12.5 | AP199: 26 | AX199: 20.2 | AY199: 51.5 | AZ199: 26.3
A200: 2015-01-08 | B200: Jan 08 | C200: 2015-01-08 | D200: 01-Jan 08 | E200: 1 | F200: 8 | G200: 2015 | H200: 20:00:00 | I200: 2.11 | J200: 5.85 | K200: 2.67 | M200: 22.05 | N200: 18.1 | O200: 29.9 | P200: 14.7 | Q200: 7.025 | R200: 28 | T200: 26.86666667 | U200: 15.29294118 | X200: 2.11 | Y200: 3 | Z200: 8.7 | AA200: 2.67 | AE200: 12.46 | AG200: 31.64 | AH200: 18.1 | AI200: 29.9 | AJ200: 14.7 | AL200: 3 | AM200: 6.1 | AN200: 9.9 | AO200: 9.1 | AP200: 28 | AX200: 21 | AY200: 44.3 | AZ200: 15.3
... 920 more rows

Sheet Sheet1
E1: LAST DATE
A2: Code | B2: State | C2: PARSED | D2: SEQUENTIAL | E2: 2020 AQS COMPLETE
A3: 9 | B3: Connecticut | E3: 2022-12-31
A4: 10 | B4: Delaware | E4: 2020-06-30
A5: 11 | B5: DC | E5: 2022-12-31
A6: 23 | B6: Maine | E6: 2022-12-31
A7: 24 | B7: Maryland | E7: 2022-12-31
A8: 25 | B8: Massachusetts | E8: 2022-10-31
A9: 33 | B9: New Hampshire | E9: 2022-12-31
A10: 34 | B10: New Jersey | E10: 2022-12-31
A11: 36 | B11: New York | E11: 2022-12-31
A12: 42 | B12: Pennsylvania | E12: 2022-12-31
A13: 44 | B13: Rhode Island | E13: 2022-12-31
A14: 50 | B14: Vermont | E14: 2022-12-31
A15: 51 | B15: Virginia OTC | E15: X
